Workbook

Sheet Instructions
D1: Checkbook Simulation Activity
B2: Check Book Simulation Activity: This activity provides you with an opportunity to track your expenses and deposits for a month by entering them into a transaction register. It will provide you with an understanding of the importance of monitoring your account balance to avoid having your account fall below zero. It also will give you an opportunity to explain the balance difference between what the bank/credit union shows and that of your transaction register.
B3: Instructions: Detailed below is a list of your deposits and withdrawals for a hypothetical month. The transactions are similar to the spending and saving choices you made when completing the budget activity. Follow the steps below to complete the activity. Step 1: Register Tab Use the information in the table below and enter it in the appropriate field in the checkbook register. As you enter the transactions, the balance of your account will be updated. If the balance falls below zero, it will trigger an overdraft fee. Step 2: Statement Tab Once you have all of the information entered in the register, click on the Statement tab to review the transactions that have cleared. "Cleared" means the bank has received the transaction and it has been reflected in your account balance. Compare your ending balance on this statement to the ending balance in your transaction register and calculate the difference. What transactions account for the difference between the two? You can use the column labeled “Cleared Y or No” on the Register tab to indicate which transactions cleared and which haven’t. Add up the transactions that have not cleared; this will be your difference from the statement balance. Step 3: Budget Viewer Tab Review this tab to see your spending for the month. Are there any categories you could lower to increase the amount available to save? What are your largest spending categories?
B5: Transactions
B6: Date | C6: Transaction Type | D6: Description | E6: Budget Category | F6: Amount
B7: 2016-09-01 | C7: Direct Deposit | D7: Pay Day | E7: Deposit | F7: 1350
B8: 2016-09-01 | C8: Auto from Checking | D8: September Rent - Due 9/1 | E8: Housing/Rent | F8: -650
B9: 2016-09-01 | C9: Auto to Savings | D9: Save for Emergency Fund | E9: Emergency Fund | F9: -75
B10: 2016-09-07 | C10: Debit Card | D10: Groceries | E10: Groceries | F10: -125
B11: 2016-09-08 | C11: ATM Cash | D11: Spending Money | E11: Entertainment | F11: -100
B12: 2016-09-12 | C12: Auto from Checking | D12: Cell Phone | E12: Other | F12: -75
B13: 2016-09-14 | C13: Auto from Checking | D13: Car Loan Payment | E13: Loan Payment | F13: -300
B14: 2016-09-14 | C14: Auto from Checking | D14: Auto Insurance and Renter's Insurance | E14: Insurance | F14: -150
B15: 2016-09-14 | C15: Debit Card | D15: Oil Change | E15: Transportation | F15: -35
B16: 2016-09-15 | C16: Direct Deposit | D16: Pay Day | E16: Deposit | F16: 1350
B17: 2016-09-20 | C17: Debit Card | D17: Groceries | E17: Groceries | F17: -125
B18: 2016-09-22 | C18: ATM Cash | D18: Spending Money | E18: Entertainment | F18: -100
B19: 2016-09-24 | C19: Auto from Checking | D19: Utilities | E19: Utilities | F19: -75
B20: 2016-09-28 | C20: Check | D20: Student Loan Payment | E20: Loan Payment | F20: -150
B21: 2016-09-29 | C21: Auto from Checking | D21: Cable/Internet | E21: Utilities | F21: -100
B22: 2016-09-28 | C22: Check | D22: Pay Back Friend for Concert Ticket | E22: Housing/Rent | F22: -100
B23: 2016-09-29 | C23: Debit Card | D23: Weekend Getaway | E23: Travel | F23: -250

Sheet Register
B2: Step 1: Register Tab Use the information in the table below and enter it in the appropriate field in the checkbook register. As you enter the transactions, the balance of your account will be updated. If the balance falls below zero, it will trigger an overdraft fee.
E4: CHECK REGISTER | F4: Student Name: | G4: Jackie Student
C6: Starting Balance: | D6: 100 | F6: Overdraft fee: | G6: -35 | P6: Do not delete these columns.
B8: Date | C8: Transaction Type | D8: Transaction Ref. | E8: Description | F8: Budget Category | G8: Cleared Y or N | H8: Cleared Date (automatic) | I8: Withdrawal Debit (-) | J8: Deposit Credit (+) | K8: Balance (automatic) | N8: Do not delete these columns. | P8: Deb_Empty | Q8: Cr_Empty
E9: Beginning Balance | K9: =D6 -> 100
B10: 2016-09-01 | C10: Direct Deposit | E10: Pay Day | F10: Income | H10: =IF(E10="OVERDRAFT",H9,IFERROR(B10+LOOKUP(Register!C10,Trans_Type,DaysToClear),"")) -> 2016-09-01 | J10: 1350 | K10: =OFFSET(K10,-1,0)+J10+I10 -> 1450 | L10: x remove | M10: + add | N10: =IF(AND(OR(OFFSET(K10,-1,0)>=0,OFFSET(J10,-1,0)>0), E10="OVERDRAFT"),"REMOVE","nothing") -> nothing | O10: =IF(AND(K10<0, E10<>"OVERDRAFT",OFFSET(E10,1,0)<>"OVERDRAFT",I10<0),"ADD","nothing") -> nothing | P10: =ISBLANK(I10) -> TRUE | Q10: =ISBLANK(J10) -> FALSE
B11: 2016-09-01 | C11: Auto from Checking | E11: September Rent - Due 9/1 | F11: Housing/Rent | H11: =IF(E11="OVERDRAFT",H10,IFERROR(B11+LOOKUP(Register!C11,Trans_Type,DaysToClear),"")) -> 2016-09-01 | I11: -650 | K11: =OFFSET(K11,-1,0)+J11+I11 -> 800 | L11: x remove | M11: + add | N11: =IF(AND(OR(OFFSET(K11,-1,0)>=0,OFFSET(J11,-1,0)>0), E11="OVERDRAFT"),"REMOVE","nothing") -> nothing | O11: =IF(AND(K11<0, E11<>"OVERDRAFT",OFFSET(E11,1,0)<>"OVERDRAFT",I11<0),"ADD","nothing") -> nothing | P11: =ISBLANK(I11) -> FALSE | Q11: =ISBLANK(J11) -> TRUE
B12: 2016-09-01 | C12: Auto to Savings | E12: Save for Emergency Fund | F12: Emergency Fund | H12: =IF(E12="OVERDRAFT",H11,IFERROR(B12+LOOKUP(Register!C12,Trans_Type,DaysToClear),"")) -> 2016-09-01 | I12: -75 | K12: 725 | L12: x remove | M12: + add | N12: nothing | O12: nothing | P12: FALSE | Q12: TRUE
B13: 2016-09-07 | C13: Debit Card | E13: Groceries | F13: Groceries | H13: =IF(E13="OVERDRAFT",H12,IFERROR(B13+LOOKUP(Register!C13,Trans_Type,DaysToClear),"")) -> 2016-09-07 | I13: -125 | K13: 600 | L13: x remove | M13: + add | N13: nothing | O13: nothing | P13: FALSE | Q13: TRUE
B14: 2016-09-08 | C14: ATM Cash | E14: Spending Money | F14: Entertainment | H14: =IF(E14="OVERDRAFT",H13,IFERROR(B14+LOOKUP(Register!C14,Trans_Type,DaysToClear),"")) -> 2016-09-08 | I14: -100 | K14: 500 | L14: x remove | M14: + add | N14: nothing | O14: nothing | P14: FALSE | Q14: TRUE
B15: 2016-09-12 | C15: Auto from Checking | E15: Cell Phone | F15: Utilities | H15: =IF(E15="OVERDRAFT",H14,IFERROR(B15+LOOKUP(Register!C15,Trans_Type,DaysToClear),"")) -> 2016-09-12 | I15: -75 | K15: 425 | L15: x remove | M15: + add | N15: nothing | O15: nothing | P15: FALSE | Q15: TRUE
B16: 2016-09-14 | C16: Auto from Checking | E16: Car Loan Payment | F16: Loan Payment | H16: =IF(E16="OVERDRAFT",H15,IFERROR(B16+LOOKUP(Register!C16,Trans_Type,DaysToClear),"")) -> 2016-09-14 | I16: -300 | K16: 125 | L16: x remove | M16: + add | N16: nothing | O16: nothing | P16: FALSE | Q16: TRUE
B17: 2016-09-14 | C17: Auto from Checking | E17: Auto Insurance and Renter's Insurance | F17: Insurance | H17: =IF(E17="OVERDRAFT",H16,IFERROR(B17+LOOKUP(Register!C17,Trans_Type,DaysToClear),"")) -> 2016-09-14 | I17: -150 | K17: -25 | L17: x remove | M17: + add | N17: nothing | O17: nothing | P17: FALSE | Q17: TRUE
B18: 2016-09-14 | C18: Bank Fee | E18: OVERDRAFT | F18: Bank Fee | H18: =IF(E18="OVERDRAFT",H17,IFERROR(B18+LOOKUP(Register!C18,Trans_Type,DaysToClear),"")) -> 2016-09-14 | I18: -35 | K18: -60 | L18: x remove | M18: + add | N18: nothing | O18: nothing | P18: FALSE | Q18: TRUE
B19: 2016-09-14 | C19: Debit Card | E19: Oil Change | F19: Travel | H19: =IF(E19="OVERDRAFT",H18,IFERROR(B19+LOOKUP(Register!C19,Trans_Type,DaysToClear),"")) -> 2016-09-14 | I19: -35 | K19: =OFFSET(K19,-1,0)+J19+I19 -> -95 | L19: x remove | M19: + add | N19: =IF(AND(OR(OFFSET(K19,-1,0)>=0,OFFSET(J19,-1,0)>0), E19="OVERDRAFT"),"REMOVE","nothing") -> nothing | O19: =IF(AND(K19<0, E19<>"OVERDRAFT",OFFSET(E19,1,0)<>"OVERDRAFT",I19<0),"ADD","nothing") -> nothing | P19: =ISBLANK(I19) -> FALSE | Q19: =ISBLANK(J19) -> TRUE
B20: 2016-09-14 | C20: Bank Fee | E20: OVERDRAFT | F20: Bank Fee | H20: =IF(E20="OVERDRAFT",H19,IFERROR(B20+LOOKUP(Register!C20,Trans_Type,DaysToClear),"")) -> 2016-09-14 | I20: -35 | K20: -130 | L20: x remove | M20: + add | N20: nothing | O20: nothing | P20: FALSE | Q20: TRUE
B21: 2016-09-15 | C21: Direct Deposit | E21: Pay Day | F21: Income | H21: =IF(E21="OVERDRAFT",H20,IFERROR(B21+LOOKUP(Register!C21,Trans_Type,DaysToClear),"")) -> 2016-09-15 | J21: 1350 | K21: =OFFSET(K21,-1,0)+J21+I21 -> 1220 | L21: x remove | M21: + add | N21: =IF(AND(OR(OFFSET(K21,-1,0)>=0,OFFSET(J21,-1,0)>0), E21="OVERDRAFT"),"REMOVE","nothing") -> nothing | O21: =IF(AND(K21<0, E21<>"OVERDRAFT",OFFSET(E21,1,0)<>"OVERDRAFT",I21<0),"ADD","nothing") -> nothing | P21: =ISBLANK(I21) -> TRUE | Q21: =ISBLANK(J21) -> FALSE
B22: 2016-09-20 | C22: Debit Card | E22: Groceries | F22: Groceries | H22: =IF(E22="OVERDRAFT",H21,IFERROR(B22+LOOKUP(Register!C22,Trans_Type,DaysToClear),"")) -> 2016-09-20 | I22: -125 | K22: 1095 | L22: x remove | M22: + add | N22: nothing | O22: nothing | P22: FALSE | Q22: TRUE
B23: 2016-09-22 | C23: ATM Cash | E23: Spending Money | F23: Entertainment | H23: =IF(E23="OVERDRAFT",H22,IFERROR(B23+LOOKUP(Register!C23,Trans_Type,DaysToClear),"")) -> 2016-09-22 | I23: -100 | K23: 995 | L23: x remove | M23: + add | N23: nothing | O23: nothing | P23: FALSE | Q23: TRUE
B24: 2016-09-24 | C24: Auto from Checking | E24: Utilities | F24: Utilities | H24: =IF(E24="OVERDRAFT",H23,IFERROR(B24+LOOKUP(Register!C24,Trans_Type,DaysToClear),"")) -> 2016-09-24 | I24: -75 | K24: 920 | L24: x remove | M24: + add | N24: nothing | O24: nothing | P24: FALSE | Q24: TRUE
B25: 2016-09-28 | C25: Check | E25: Student Loan Payment | F25: Loan Payment | H25: =IF(E25="OVERDRAFT",H24,IFERROR(B25+LOOKUP(Register!C25,Trans_Type,DaysToClear),"")) -> 2016-10-03 | I25: -150 | K25: 770 | L25: x remove | M25: + add | N25: nothing | O25: nothing | P25: FALSE | Q25: TRUE
B26: 2016-09-29 | C26: Auto from Checking | E26: Cable/Internet | F26: Utilities | H26: =IF(E26="OVERDRAFT",H25,IFERROR(B26+LOOKUP(Register!C26,Trans_Type,DaysToClear),"")) -> 2016-09-29 | I26: -100 | K26: 670 | L26: x remove | M26: + add | N26: nothing | O26: nothing | P26: FALSE | Q26: TRUE
B27: 2016-09-28 | C27: Check | E27: Pay back friend for concert ticket | F27: Entertainment | H27: =IF(E27="OVERDRAFT",H26,IFERROR(B27+LOOKUP(Register!C27,Trans_Type,DaysToClear),"")) -> 2016-10-03 | I27: -100 | K27: 570 | L27: x remove | M27: + add | N27: nothing | O27: nothing | P27: FALSE | Q27: TRUE
B28: 2016-09-29 | C28: Debit Card | E28: Weekend Getaway | F28: Entertainment | H28: =IF(E28="OVERDRAFT",H27,IFERROR(B28+LOOKUP(Register!C28,Trans_Type,DaysToClear),"")) -> 2016-09-29 | I28: -250 | K28: 320 | L28: x remove | M28: + add | N28: nothing | O28: nothing | P28: FALSE | Q28: TRUE
H29: =IF(E29="OVERDRAFT",H28,IFERROR(B29+LOOKUP(Register!C29,Trans_Type,DaysToClear),"")) ->  | K29: 320 | L29: x remove | M29: + add | N29: nothing | O29: nothing | P29: TRUE | Q29: TRUE
H30: =IF(E30="OVERDRAFT",H29,IFERROR(B30+LOOKUP(Register!C30,Trans_Type,DaysToClear),"")) ->  | K30: 320 | L30: x remove | M30: + add | N30: nothing | O30: nothing | P30: TRUE | Q30: TRUE
H31: =IF(E31="OVERDRAFT",H30,IFERROR(B31+LOOKUP(Register!C31,Trans_Type,DaysToClear),"")) ->  | K31: 320 | L31: x remove | M31: + add | N31: nothing | O31: nothing | P31: TRUE | Q31: TRUE
H32: =IF(E32="OVERDRAFT",H31,IFERROR(B32+LOOKUP(Register!C32,Trans_Type,DaysToClear),"")) ->  | K32: 320 | L32: x remove | M32: + add | N32: nothing | O32: nothing | P32: TRUE | Q32: TRUE
H33: =IF(E33="OVERDRAFT",H32,IFERROR(B33+LOOKUP(Register!C33,Trans_Type,DaysToClear),"")) ->  | K33: 320 | L33: x remove | M33: + add | N33: nothing | O33: nothing | P33: TRUE | Q33: TRUE
H34: =IF(E34="OVERDRAFT",H33,IFERROR(B34+LOOKUP(Register!C34,Trans_Type,DaysToClear),"")) ->  | K34: 320 | L34: x remove | M34: + add | N34: nothing | O34: nothing | P34: TRUE | Q34: TRUE
H35: =IF(E35="OVERDRAFT",H34,IFERROR(B35+LOOKUP(Register!C35,Trans_Type,DaysToClear),"")) ->  | K35: 320 | L35: x remove | M35: + add | N35: nothing | O35: nothing | P35: TRUE | Q35: TRUE
H36: =IF(E36="OVERDRAFT",H35,IFERROR(B36+LOOKUP(Register!C36,Trans_Type,DaysToClear),"")) ->  | K36: 320 | L36: x remove | M36: + add | N36: nothing | O36: nothing | P36: TRUE | Q36: TRUE
H37: =IF(E37="OVERDRAFT",H36,IFERROR(B37+LOOKUP(Register!C37,Trans_Type,DaysToClear),"")) ->  | K37: 320 | L37: x remove | M37: + add | N37: nothing | O37: nothing | P37: TRUE | Q37: TRUE
H38: =IF(E38="OVERDRAFT",H37,IFERROR(B38+LOOKUP(Register!C38,Trans_Type,DaysToClear),"")) ->  | K38: 320 | L38: x remove | M38: + add | N38: nothing | O38: nothing | P38: TRUE | Q38: TRUE
H39: =IF(E39="OVERDRAFT",H38,IFERROR(B39+LOOKUP(Register!C39,Trans_Type,DaysToClear),"")) ->  | K39: 320 | L39: x remove | M39: + add | N39: nothing | O39: nothing | P39: TRUE | Q39: TRUE
H40: =IF(E40="OVERDRAFT",H39,IFERROR(B40+LOOKUP(Register!C40,Trans_Type,DaysToClear),"")) ->  | K40: 320 | L40: x remove | M40: + add | N40: nothing | O40: nothing | P40: TRUE | Q40: TRUE
H41: =IF(E41="OVERDRAFT",H40,IFERROR(B41+LOOKUP(Register!C41,Trans_Type,DaysToClear),"")) ->  | K41: 320 | L41: x remove | M41: + add | N41: nothing | O41: nothing | P41: TRUE | Q41: TRUE
H42: =IF(E42="OVERDRAFT",H41,IFERROR(B42+LOOKUP(Register!C42,Trans_Type,DaysToClear),"")) ->  | K42: 320 | L42: x remove | M42: + add | N42: nothing | O42: nothing | P42: TRUE | Q42: TRUE
H43: =IF(E43="OVERDRAFT",H42,IFERROR(B43+LOOKUP(Register!C43,Trans_Type,DaysToClear),"")) ->  | K43: 320 | L43: x remove | M43: + add | N43: nothing | O43: nothing | P43: TRUE | Q43: TRUE
H44: =IF(E44="OVERDRAFT",H43,IFERROR(B44+LOOKUP(Register!C44,Trans_Type,DaysToClear),"")) ->  | K44: 320 | L44: x remove | M44: + add | N44: nothing | O44: nothing | P44: TRUE | Q44: TRUE
H45: =IF(E45="OVERDRAFT",H44,IFERROR(B45+LOOKUP(Register!C45,Trans_Type,DaysToClear),"")) ->  | K45: 320 | L45: x remove | M45: + add | N45: nothing | O45: nothing | P45: TRUE | Q45: TRUE
H46: =IF(E46="OVERDRAFT",H45,IFERROR(B46+LOOKUP(Register!C46,Trans_Type,DaysToClear),"")) ->  | K46: 320 | L46: x remove | M46: + add | N46: nothing | O46: nothing | P46: TRUE | Q46: TRUE
H47: =IF(E47="OVERDRAFT",H46,IFERROR(B47+LOOKUP(Register!C47,Trans_Type,DaysToClear),"")) ->  | K47: 320 | L47: x remove | M47: + add | N47: nothing | O47: nothing | P47: TRUE | Q47: TRUE
H48: =IF(E48="OVERDRAFT",H47,IFERROR(B48+LOOKUP(Register!C48,Trans_Type,DaysToClear),"")) ->  | K48: 320 | L48: x remove | M48: + add | N48: nothing | O48: nothing | P48: TRUE | Q48: TRUE
H49: =IF(E49="OVERDRAFT",H48,IFERROR(B49+LOOKUP(Register!C49,Trans_Type,DaysToClear),"")) ->  | K49: 320 | L49: x remove | M49: + add | N49: nothing | O49: nothing | P49: TRUE | Q49: TRUE
H50: =IF(E50="OVERDRAFT",H49,IFERROR(B50+LOOKUP(Register!C50,Trans_Type,DaysToClear),"")) ->  | K50: 320 | L50: x remove | M50: + add | N50: nothing | O50: nothing | P50: TRUE | Q50: TRUE
H51: =IF(E51="OVERDRAFT",H50,IFERROR(B51+LOOKUP(Register!C51,Trans_Type,DaysToClear),"")) ->  | K51: 320 | L51: x remove | M51: + add | N51: nothing | O51: nothing | P51: TRUE | Q51: TRUE
H52: =IF(E52="OVERDRAFT",H51,IFERROR(B52+LOOKUP(Register!C52,Trans_Type,DaysToClear),"")) ->  | K52: 320 | L52: x remove | M52: + add | N52: nothing | O52: nothing | P52: TRUE | Q52: TRUE
H53: =IF(E53="OVERDRAFT",H52,IFERROR(B53+LOOKUP(Register!C53,Trans_Type,DaysToClear),"")) ->  | K53: 320 | L53: x remove | M53: + add | N53: nothing | O53: nothing | P53: TRUE | Q53: TRUE
H54: =IF(E54="OVERDRAFT",H53,IFERROR(B54+LOOKUP(Register!C54,Trans_Type,DaysToClear),"")) ->  | K54: 320 | L54: x remove | M54: + add | N54: nothing | O54: nothing | P54: TRUE | Q54: TRUE
H55: =IF(E55="OVERDRAFT",H54,IFERROR(B55+LOOKUP(Register!C55,Trans_Type,DaysToClear),"")) ->  | K55: 320 | L55: x remove | M55: + add | N55: nothing | O55: nothing | P55: TRUE | Q55: TRUE
H56: =IF(E56="OVERDRAFT",H55,IFERROR(B56+LOOKUP(Register!C56,Trans_Type,DaysToClear),"")) ->  | K56: 320 | L56: x remove | M56: + add | N56: nothing | O56: nothing | P56: TRUE | Q56: TRUE
H57: =IF(E57="OVERDRAFT",H56,IFERROR(B57+LOOKUP(Register!C57,Trans_Type,DaysToClear),"")) ->  | K57: 320 | L57: x remove | M57: + add | N57: nothing | O57: nothing | P57: TRUE | Q57: TRUE
H58: =IF(E58="OVERDRAFT",H57,IFERROR(B58+LOOKUP(Register!C58,Trans_Type,DaysToClear),"")) ->  | K58: 320 | L58: x remove | M58: + add | N58: nothing | O58: nothing | P58: TRUE | Q58: TRUE
H59: =IF(E59="OVERDRAFT",H58,IFERROR(B59+LOOKUP(Register!C59,Trans_Type,DaysToClear),"")) ->  | K59: 320 | L59: x remove | M59: + add | N59: nothing | O59: nothing | P59: TRUE | Q59: TRUE
H60: =IF(E60="OVERDRAFT",H59,IFERROR(B60+LOOKUP(Register!C60,Trans_Type,DaysToClear),"")) ->  | K60: 320 | L60: x remove | M60: + add | N60: nothing | O60: nothing | P60: TRUE | Q60: TRUE
H61: =IF(E61="OVERDRAFT",H60,IFERROR(B61+LOOKUP(Register!C61,Trans_Type,DaysToClear),"")) ->  | K61: 320 | L61: x remove | M61: + add | N61: nothing | O61: nothing | P61: TRUE | Q61: TRUE
H62: =IF(E62="OVERDRAFT",H61,IFERROR(B62+LOOKUP(Register!C62,Trans_Type,DaysToClear),"")) ->  | K62: 320 | L62: x remove | M62: + add | N62: nothing | O62: nothing | P62: TRUE | Q62: TRUE
H63: =IF(E63="OVERDRAFT",H62,IFERROR(B63+LOOKUP(Register!C63,Trans_Type,DaysToClear),"")) ->  | K63: 320 | L63: x remove | M63: + add | N63: nothing | O63: nothing | P63: TRUE | Q63: TRUE
H64: =IF(E64="OVERDRAFT",H63,IFERROR(B64+LOOKUP(Register!C64,Trans_Type,DaysToClear),"")) ->  | K64: 320 | L64: x remove | M64: + add | N64: nothing | O64: nothing | P64: TRUE | Q64: TRUE
H65: =IF(E65="OVERDRAFT",H64,IFERROR(B65+LOOKUP(Register!C65,Trans_Type,DaysToClear),"")) ->  | K65: 320 | L65: x remove | M65: + add | N65: nothing | O65: nothing | P65: TRUE | Q65: TRUE
H66: =IF(E66="OVERDRAFT",H65,IFERROR(B66+LOOKUP(Register!C66,Trans_Type,DaysToClear),"")) ->  | K66: 320 | L66: x remove | M66: + add | N66: nothing | O66: nothing | P66: TRUE | Q66: TRUE
H67: =IF(E67="OVERDRAFT",H66,IFERROR(B67+LOOKUP(Register!C67,Trans_Type,DaysToClear),"")) ->  | K67: 320 | L67: x remove | M67: + add | N67: nothing | O67: nothing | P67: TRUE | Q67: TRUE
H68: =IF(E68="OVERDRAFT",H67,IFERROR(B68+LOOKUP(Register!C68,Trans_Type,DaysToClear),"")) ->  | K68: 320 | L68: x remove | M68: + add | N68: nothing | O68: nothing | P68: TRUE | Q68: TRUE
H69: =IF(E69="OVERDRAFT",H68,IFERROR(B69+LOOKUP(Register!C69,Trans_Type,DaysToClear),"")) ->  | K69: 320 | L69: x remove | M69: + add | N69: nothing | O69: nothing | P69: TRUE | Q69: TRUE
H70: =IF(E70="OVERDRAFT",H69,IFERROR(B70+LOOKUP(Register!C70,Trans_Type,DaysToClear),"")) ->  | K70: 320 | L70: x remove | M70: + add | N70: nothing | O70: nothing | P70: TRUE | Q70: TRUE
H71: =IF(E71="OVERDRAFT",H70,IFERROR(B71+LOOKUP(Register!C71,Trans_Type,DaysToClear),"")) ->  | K71: 320 | L71: x remove | M71: + add | N71: nothing | O71: nothing | P71: TRUE | Q71: TRUE
H72: =IF(E72="OVERDRAFT",H71,IFERROR(B72+LOOKUP(Register!C72,Trans_Type,DaysToClear),"")) ->  | K72: 320 | L72: x remove | M72: + add | N72: nothing | O72: nothing | P72: TRUE | Q72: TRUE
H73: =IF(E73="OVERDRAFT",H72,IFERROR(B73+LOOKUP(Register!C73,Trans_Type,DaysToClear),"")) ->  | K73: 320 | L73: x remove | M73: + add | N73: nothing | O73: nothing | P73: TRUE | Q73: TRUE
H74: =IF(E74="OVERDRAFT",H73,IFERROR(B74+LOOKUP(Register!C74,Trans_Type,DaysToClear),"")) ->  | K74: 320 | L74: x remove | M74: + add | N74: nothing | O74: nothing | P74: TRUE | Q74: TRUE
H75: =IF(E75="OVERDRAFT",H74,IFERROR(B75+LOOKUP(Register!C75,Trans_Type,DaysToClear),"")) ->  | K75: 320 | L75: x remove | M75: + add | N75: nothing | O75: nothing | P75: TRUE | Q75: TRUE
H76: =IF(E76="OVERDRAFT",H75,IFERROR(B76+LOOKUP(Register!C76,Trans_Type,DaysToClear),"")) ->  | K76: 320 | L76: x remove | M76: + add | N76: nothing | O76: nothing | P76: TRUE | Q76: TRUE
H77: =IF(E77="OVERDRAFT",H76,IFERROR(B77+LOOKUP(Register!C77,Trans_Type,DaysToClear),"")) ->  | K77: =OFFSET(K77,-1,0)+J77+I77 -> 320 | L77: x remove | M77: + add | N77: =IF(AND(OR(OFFSET(K77,-1,0)>=0,OFFSET(J77,-1,0)>0), E77="OVERDRAFT"),"REMOVE","nothing") -> nothing | O77: =IF(AND(K77<0, E77<>"OVERDRAFT",OFFSET(E77,1,0)<>"OVERDRAFT",I77<0),"ADD","nothing") -> nothing | P77: =ISBLANK(I77) -> TRUE | Q77: =ISBLANK(J77) -> TRUE
H78: =IF(E78="OVERDRAFT",H77,IFERROR(B78+LOOKUP(Register!C78,Trans_Type,DaysToClear),"")) ->  | K78: 320 | L78: x remove | M78: + add | N78: nothing | O78: nothing | P78: TRUE | Q78: TRUE
H79: =IF(E79="OVERDRAFT",H78,IFERROR(B79+LOOKUP(Register!C79,Trans_Type,DaysToClear),"")) ->  | K79: 320 | L79: x remove | M79: + add | N79: nothing | O79: nothing | P79: TRUE | Q79: TRUE
H80: =IF(E80="OVERDRAFT",H79,IFERROR(B80+LOOKUP(Register!C80,Trans_Type,DaysToClear),"")) ->  | K80: 320 | L80: x remove | M80: + add | N80: nothing | O80: nothing | P80: TRUE | Q80: TRUE
H81: =IF(E81="OVERDRAFT",H80,IFERROR(B81+LOOKUP(Register!C81,Trans_Type,DaysToClear),"")) ->  | K81: 320 | L81: x remove | M81: + add | N81: nothing | O81: nothing | P81: TRUE | Q81: TRUE
H82: =IF(E82="OVERDRAFT",H81,IFERROR(B82+LOOKUP(Register!C82,Trans_Type,DaysToClear),"")) ->  | K82: 320 | L82: x remove | M82: + add | N82: nothing | O82: nothing | P82: TRUE | Q82: TRUE
H83: =IF(E83="OVERDRAFT",H82,IFERROR(B83+LOOKUP(Register!C83,Trans_Type,DaysToClear),"")) ->  | K83: 320 | L83: x remove | M83: + add | N83: nothing | O83: nothing | P83: TRUE | Q83: TRUE
H84: =IF(E84="OVERDRAFT",H83,IFERROR(B84+LOOKUP(Register!C84,Trans_Type,DaysToClear),"")) ->  | K84: 320 | L84: x remove | M84: + add | N84: nothing | O84: nothing | P84: TRUE | Q84: TRUE
H85: =IF(E85="OVERDRAFT",H84,IFERROR(B85+LOOKUP(Register!C85,Trans_Type,DaysToClear),"")) ->  | K85: 320 | L85: x remove | M85: + add | N85: nothing | O85: nothing | P85: TRUE | Q85: TRUE
H86: =IF(E86="OVERDRAFT",H85,IFERROR(B86+LOOKUP(Register!C86,Trans_Type,DaysToClear),"")) ->  | K86: 320 | L86: x remove | M86: + add | N86: nothing | O86: nothing | P86: TRUE | Q86: TRUE
H87: =IF(E87="OVERDRAFT",H86,IFERROR(B87+LOOKUP(Register!C87,Trans_Type,DaysToClear),"")) ->  | K87: 320 | L87: x remove | M87: + add | N87: nothing | O87: nothing | P87: TRUE | Q87: TRUE
H88: =IF(E88="OVERDRAFT",H87,IFERROR(B88+LOOKUP(Register!C88,Trans_Type,DaysToClear),"")) ->  | K88: 320 | L88: x remove | M88: + add | N88: nothing | O88: nothing | P88: TRUE | Q88: TRUE
H89: =IF(E89="OVERDRAFT",H88,IFERROR(B89+LOOKUP(Register!C89,Trans_Type,DaysToClear),"")) ->  | K89: 320 | L89: x remove | M89: + add | N89: nothing | O89: nothing | P89: TRUE | Q89: TRUE
H90: =IF(E90="OVERDRAFT",H89,IFERROR(B90+LOOKUP(Register!C90,Trans_Type,DaysToClear),"")) ->  | K90: 320 | L90: x remove | M90: + add | N90: nothing | O90: nothing | P90: TRUE | Q90: TRUE
H91: =IF(E91="OVERDRAFT",H90,IFERROR(B91+LOOKUP(Register!C91,Trans_Type,DaysToClear),"")) ->  | K91: 320 | L91: x remove | M91: + add | N91: nothing | O91: nothing | P91: TRUE | Q91: TRUE
H92: =IF(E92="OVERDRAFT",H91,IFERROR(B92+LOOKUP(Register!C92,Trans_Type,DaysToClear),"")) ->  | K92: 320 | L92: x remove | M92: + add | N92: nothing | O92: nothing | P92: TRUE | Q92: TRUE
H93: =IF(E93="OVERDRAFT",H92,IFERROR(B93+LOOKUP(Register!C93,Trans_Type,DaysToClear),"")) ->  | K93: 320 | L93: x remove | M93: + add | N93: nothing | O93: nothing | P93: TRUE | Q93: TRUE
H94: =IF(E94="OVERDRAFT",H93,IFERROR(B94+LOOKUP(Register!C94,Trans_Type,DaysToClear),"")) ->  | K94: 320 | L94: x remove | M94: + add | N94: nothing | O94: nothing | P94: TRUE | Q94: TRUE
H95: =IF(E95="OVERDRAFT",H94,IFERROR(B95+LOOKUP(Register!C95,Trans_Type,DaysToClear),"")) ->  | K95: 320 | L95: x remove | M95: + add | N95: nothing | O95: nothing | P95: TRUE | Q95: TRUE
H96: =IF(E96="OVERDRAFT",H95,IFERROR(B96+LOOKUP(Register!C96,Trans_Type,DaysToClear),"")) ->  | K96: 320 | L96: x remove | M96: + add | N96: nothing | O96: nothing | P96: TRUE | Q96: TRUE
H97: =IF(E97="OVERDRAFT",H96,IFERROR(B97+LOOKUP(Register!C97,Trans_Type,DaysToClear),"")) ->  | K97: 320 | L97: x remove | M97: + add | N97: nothing | O97: nothing | P97: TRUE | Q97: TRUE
H98: =IF(E98="OVERDRAFT",H97,IFERROR(B98+LOOKUP(Register!C98,Trans_Type,DaysToClear),"")) ->  | K98: 320 | L98: x remove | M98: + add | N98: nothing | O98: nothing | P98: TRUE | Q98: TRUE
H99: =IF(E99="OVERDRAFT",H98,IFERROR(B99+LOOKUP(Register!C99,Trans_Type,DaysToClear),"")) ->  | K99: 320 | L99: x remove | M99: + add | N99: nothing | O99: nothing | P99: TRUE | Q99: TRUE
H100: =IF(E100="OVERDRAFT",H99,IFERROR(B100+LOOKUP(Register!C100,Trans_Type,DaysToClear),"")) ->  | K100: 320 | L100: x remove | M100: + add | N100: nothing | O100: nothing | P100: TRUE | Q100: TRUE
H101: =IF(E101="OVERDRAFT",H100,IFERROR(B101+LOOKUP(Register!C101,Trans_Type,DaysToClear),"")) ->  | K101: 320 | L101: x remove | M101: + add | N101: nothing | O101: nothing | P101: TRUE | Q101: TRUE
H102: =IF(E102="OVERDRAFT",H101,IFERROR(B102+LOOKUP(Register!C102,Trans_Type,DaysToClear),"")) ->  | K102: 320 | L102: x remove | M102: + add | N102: nothing | O102: nothing | P102: TRUE | Q102: TRUE
H103: =IF(E103="OVERDRAFT",H102,IFERROR(B103+LOOKUP(Register!C103,Trans_Type,DaysToClear),"")) ->  | K103: 320 | L103: x remove | M103: + add | N103: nothing | O103: nothing | P103: TRUE | Q103: TRUE
H104: =IF(E104="OVERDRAFT",H103,IFERROR(B104+LOOKUP(Register!C104,Trans_Type,DaysToClear),"")) ->  | K104: 320 | L104: x remove | M104: + add | N104: nothing | O104: nothing | P104: TRUE | Q104: TRUE
H105: =IF(E105="OVERDRAFT",H104,IFERROR(B105+LOOKUP(Register!C105,Trans_Type,DaysToClear),"")) ->  | K105: 320 | L105: x remove | M105: + add | N105: nothing | O105: nothing | P105: TRUE | Q105: TRUE
H106: =IF(E106="OVERDRAFT",H105,IFERROR(B106+LOOKUP(Register!C106,Trans_Type,DaysToClear),"")) ->  | K106: 320 | L106: x remove | M106: + add | N106: nothing | O106: nothing | P106: TRUE | Q106: TRUE
H107: =IF(E107="OVERDRAFT",H106,IFERROR(B107+LOOKUP(Register!C107,Trans_Type,DaysToClear),"")) ->  | K107: 320 | L107: x remove | M107: + add | N107: nothing | O107: nothing | P107: TRUE | Q107: TRUE
H108: =IF(E108="OVERDRAFT",H107,IFERROR(B108+LOOKUP(Register!C108,Trans_Type,DaysToClear),"")) ->  | K108: 320 | L108: x remove | M108: + add | N108: nothing | O108: nothing | P108: TRUE | Q108: TRUE
H109: =IF(E109="OVERDRAFT",H108,IFERROR(B109+LOOKUP(Register!C109,Trans_Type,DaysToClear),"")) ->  | K109: 320 | L109: x remove | M109: + add | N109: nothing | O109: nothing | P109: TRUE | Q109: TRUE
H110: =IF(E110="OVERDRAFT",H109,IFERROR(B110+LOOKUP(Register!C110,Trans_Type,DaysToClear),"")) ->  | K110: 320 | L110: x remove | M110: + add | N110: nothing | O110: nothing | P110: TRUE | Q110: TRUE
H111: =IF(E111="OVERDRAFT",H110,IFERROR(B111+LOOKUP(Register!C111,Trans_Type,DaysToClear),"")) ->  | K111: 320 | L111: x remove | M111: + add | N111: nothing | O111: nothing | P111: TRUE | Q111: TRUE
H112: =IF(E112="OVERDRAFT",H111,IFERROR(B112+LOOKUP(Register!C112,Trans_Type,DaysToClear),"")) ->  | K112: 320 | L112: x remove | M112: + add | N112: nothing | O112: nothing | P112: TRUE | Q112: TRUE
H113: =IF(E113="OVERDRAFT",H112,IFERROR(B113+LOOKUP(Register!C113,Trans_Type,DaysToClear),"")) ->  | K113: 320 | L113: x remove | M113: + add | N113: nothing | O113: nothing | P113: TRUE | Q113: TRUE
H114: =IF(E114="OVERDRAFT",H113,IFERROR(B114+LOOKUP(Register!C114,Trans_Type,DaysToClear),"")) ->  | K114: 320 | L114: x remove | M114: + add | N114: nothing | O114: nothing | P114: TRUE | Q114: TRUE
H115: =IF(E115="OVERDRAFT",H114,IFERROR(B115+LOOKUP(Register!C115,Trans_Type,DaysToClear),"")) ->  | K115: 320 | L115: x remove | M115: + add | N115: nothing | O115: nothing | P115: TRUE | Q115: TRUE
H116: =IF(E116="OVERDRAFT",H115,IFERROR(B116+LOOKUP(Register!C116,Trans_Type,DaysToClear),"")) ->  | K116: 320 | L116: x remove | M116: + add | N116: nothing | O116: nothing | P116: TRUE | Q116: TRUE
H117: =IF(E117="OVERDRAFT",H116,IFERROR(B117+LOOKUP(Register!C117,Trans_Type,DaysToClear),"")) ->  | K117: 320 | L117: x remove | M117: + add | N117: nothing | O117: nothing | P117: TRUE | Q117: TRUE
H118: =IF(E118="OVERDRAFT",H117,IFERROR(B118+LOOKUP(Register!C118,Trans_Type,DaysToClear),"")) ->  | K118: 320 | L118: x remove | M118: + add | N118: nothing | O118: nothing | P118: TRUE | Q118: TRUE
H119: =IF(E119="OVERDRAFT",H118,IFERROR(B119+LOOKUP(Register!C119,Trans_Type,DaysToClear),"")) ->  | K119: 320 | L119: x remove | M119: + add | N119: nothing | O119: nothing | P119: TRUE | Q119: TRUE
H120: =IF(E120="OVERDRAFT",H119,IFERROR(B120+LOOKUP(Register!C120,Trans_Type,DaysToClear),"")) ->  | K120: 320 | L120: x remove | M120: + add | N120: nothing | O120: nothing | P120: TRUE | Q120: TRUE
H121: =IF(E121="OVERDRAFT",H120,IFERROR(B121+LOOKUP(Register!C121,Trans_Type,DaysToClear),"")) ->  | K121: 320 | L121: x remove | M121: + add | N121: nothing | O121: nothing | P121: TRUE | Q121: TRUE
H122: =IF(E122="OVERDRAFT",H121,IFERROR(B122+LOOKUP(Register!C122,Trans_Type,DaysToClear),"")) ->  | K122: 320 | L122: x remove | M122: + add | N122: nothing | O122: nothing | P122: TRUE | Q122: TRUE
H123: =IF(E123="OVERDRAFT",H122,IFERROR(B123+LOOKUP(Register!C123,Trans_Type,DaysToClear),"")) ->  | K123: 320 | L123: x remove | M123: + add | N123: nothing | O123: nothing | P123: TRUE | Q123: TRUE
H124: =IF(E124="OVERDRAFT",H123,IFERROR(B124+LOOKUP(Register!C124,Trans_Type,DaysToClear),"")) ->  | K124: 320 | L124: x remove | M124: + add | N124: nothing | O124: nothing | P124: TRUE | Q124: TRUE
H125: =IF(E125="OVERDRAFT",H124,IFERROR(B125+LOOKUP(Register!C125,Trans_Type,DaysToClear),"")) ->  | K125: 320 | L125: x remove | M125: + add | N125: nothing | O125: nothing | P125: TRUE | Q125: TRUE
H126: =IF(E126="OVERDRAFT",H125,IFERROR(B126+LOOKUP(Register!C126,Trans_Type,DaysToClear),"")) ->  | K126: 320 | L126: x remove | M126: + add | N126: nothing | O126: nothing | P126: TRUE | Q126: TRUE
H127: =IF(E127="OVERDRAFT",H126,IFERROR(B127+LOOKUP(Register!C127,Trans_Type,DaysToClear),"")) ->  | K127: 320 | L127: x remove | M127: + add | N127: nothing | O127: nothing | P127: TRUE | Q127: TRUE
H128: =IF(E128="OVERDRAFT",H127,IFERROR(B128+LOOKUP(Register!C128,Trans_Type,DaysToClear),"")) ->  | K128: 320 | L128: x remove | M128: + add | N128: nothing | O128: nothing | P128: TRUE | Q128: TRUE
H129: =IF(E129="OVERDRAFT",H128,IFERROR(B129+LOOKUP(Register!C129,Trans_Type,DaysToClear),"")) ->  | K129: 320 | L129: x remove | M129: + add | N129: nothing | O129: nothing | P129: TRUE | Q129: TRUE
H130: =IF(E130="OVERDRAFT",H129,IFERROR(B130+LOOKUP(Register!C130,Trans_Type,DaysToClear),"")) ->  | K130: 320 | L130: x remove | M130: + add | N130: nothing | O130: nothing | P130: TRUE | Q130: TRUE
H131: =IF(E131="OVERDRAFT",H130,IFERROR(B131+LOOKUP(Register!C131,Trans_Type,DaysToClear),"")) ->  | K131: 320 | L131: x remove | M131: + add | N131: nothing | O131: nothing | P131: TRUE | Q131: TRUE
H132: =IF(E132="OVERDRAFT",H131,IFERROR(B132+LOOKUP(Register!C132,Trans_Type,DaysToClear),"")) ->  | K132: 320 | L132: x remove | M132: + add | N132: nothing | O132: nothing | P132: TRUE | Q132: TRUE
H133: =IF(E133="OVERDRAFT",H132,IFERROR(B133+LOOKUP(Register!C133,Trans_Type,DaysToClear),"")) ->  | K133: 320 | L133: x remove | M133: + add | N133: nothing | O133: nothing | P133: TRUE | Q133: TRUE
H134: =IF(E134="OVERDRAFT",H133,IFERROR(B134+LOOKUP(Register!C134,Trans_Type,DaysToClear),"")) ->  | K134: 320 | L134: x remove | M134: + add | N134: nothing | O134: nothing | P134: TRUE | Q134: TRUE
H135: =IF(E135="OVERDRAFT",H134,IFERROR(B135+LOOKUP(Register!C135,Trans_Type,DaysToClear),"")) ->  | K135: 320 | L135: x remove | M135: + add | N135: nothing | O135: nothing | P135: TRUE | Q135: TRUE
H136: =IF(E136="OVERDRAFT",H135,IFERROR(B136+LOOKUP(Register!C136,Trans_Type,DaysToClear),"")) ->  | K136: 320 | L136: x remove | M136: + add | N136: nothing | O136: nothing | P136: TRUE | Q136: TRUE
H137: =IF(E137="OVERDRAFT",H136,IFERROR(B137+LOOKUP(Register!C137,Trans_Type,DaysToClear),"")) ->  | K137: 320 | L137: x remove | M137: + add | N137: nothing | O137: nothing | P137: TRUE | Q137: TRUE
H138: =IF(E138="OVERDRAFT",H137,IFERROR(B138+LOOKUP(Register!C138,Trans_Type,DaysToClear),"")) ->  | K138: 320 | L138: x remove | M138: + add | N138: nothing | O138: nothing | P138: TRUE | Q138: TRUE
H139: =IF(E139="OVERDRAFT",H138,IFERROR(B139+LOOKUP(Register!C139,Trans_Type,DaysToClear),"")) ->  | K139: 320 | L139: x remove | M139: + add | N139: nothing | O139: nothing | P139: TRUE | Q139: TRUE
H140: =IF(E140="OVERDRAFT",H139,IFERROR(B140+LOOKUP(Register!C140,Trans_Type,DaysToClear),"")) ->  | K140: 320 | L140: x remove | M140: + add | N140: nothing | O140: nothing | P140: TRUE | Q140: TRUE
H141: =IF(E141="OVERDRAFT",H140,IFERROR(B141+LOOKUP(Register!C141,Trans_Type,DaysToClear),"")) ->  | K141: =OFFSET(K141,-1,0)+J141+I141 -> 320 | L141: x remove | M141: + add | N141: =IF(AND(OR(OFFSET(K141,-1,0)>=0,OFFSET(J141,-1,0)>0), E141="OVERDRAFT"),"REMOVE","nothing") -> nothing | O141: =IF(AND(K141<0, E141<>"OVERDRAFT",OFFSET(E141,1,0)<>"OVERDRAFT",I141<0),"ADD","nothing") -> nothing | P141: =ISBLANK(I141) -> TRUE | Q141: =ISBLANK(J141) -> TRUE
H142: =IF(E142="OVERDRAFT",H141,IFERROR(B142+LOOKUP(Register!C142,Trans_Type,DaysToClear),"")) ->  | K142: 320 | L142: x remove | M142: + add | N142: nothing | O142: nothing | P142: TRUE | Q142: TRUE
H143: =IF(E143="OVERDRAFT",H142,IFERROR(B143+LOOKUP(Register!C143,Trans_Type,DaysToClear),"")) ->  | K143: 320 | L143: x remove | M143: + add | N143: nothing | O143: nothing | P143: TRUE | Q143: TRUE
H144: =IF(E144="OVERDRAFT",H143,IFERROR(B144+LOOKUP(Register!C144,Trans_Type,DaysToClear),"")) ->  | K144: 320 | L144: x remove | M144: + add | N144: nothing | O144: nothing | P144: TRUE | Q144: TRUE
H145: =IF(E145="OVERDRAFT",H144,IFERROR(B145+LOOKUP(Register!C145,Trans_Type,DaysToClear),"")) ->  | K145: 320 | L145: x remove | M145: + add | N145: nothing | O145: nothing | P145: TRUE | Q145: TRUE
H146: =IF(E146="OVERDRAFT",H145,IFERROR(B146+LOOKUP(Register!C146,Trans_Type,DaysToClear),"")) ->  | K146: 320 | L146: x remove | M146: + add | N146: nothing | O146: nothing | P146: TRUE | Q146: TRUE
H147: =IF(E147="OVERDRAFT",H146,IFERROR(B147+LOOKUP(Register!C147,Trans_Type,DaysToClear),"")) ->  | K147: 320 | L147: x remove | M147: + add | N147: nothing | O147: nothing | P147: TRUE | Q147: TRUE
H148: =IF(E148="OVERDRAFT",H147,IFERROR(B148+LOOKUP(Register!C148,Trans_Type,DaysToClear),"")) ->  | K148: 320 | L148: x remove | M148: + add | N148: nothing | O148: nothing | P148: TRUE | Q148: TRUE
H149: =IF(E149="OVERDRAFT",H148,IFERROR(B149+LOOKUP(Register!C149,Trans_Type,DaysToClear),"")) ->  | K149: 320 | L149: x remove | M149: + add | N149: nothing | O149: nothing | P149: TRUE | Q149: TRUE
H150: =IF(E150="OVERDRAFT",H149,IFERROR(B150+LOOKUP(Register!C150,Trans_Type,DaysToClear),"")) ->  | K150: 320 | L150: x remove | M150: + add | N150: nothing | O150: nothing | P150: TRUE | Q150: TRUE
H151: =IF(E151="OVERDRAFT",H150,IFERROR(B151+LOOKUP(Register!C151,Trans_Type,DaysToClear),"")) ->  | K151: 320 | L151: x remove | M151: + add | N151: nothing | O151: nothing | P151: TRUE | Q151: TRUE
H152: =IF(E152="OVERDRAFT",H151,IFERROR(B152+LOOKUP(Register!C152,Trans_Type,DaysToClear),"")) ->  | K152: 320 | L152: x remove | M152: + add | N152: nothing | O152: nothing | P152: TRUE | Q152: TRUE
H153: =IF(E153="OVERDRAFT",H152,IFERROR(B153+LOOKUP(Register!C153,Trans_Type,DaysToClear),"")) ->  | K153: =OFFSET(K153,-1,0)+J153+I153 -> 320 | L153: x remove | M153: + add | N153: =IF(AND(OR(OFFSET(K153,-1,0)>=0,OFFSET(J153,-1,0)>0), E153="OVERDRAFT"),"REMOVE","nothing") -> nothing | O153: =IF(AND(K153<0, E153<>"OVERDRAFT",OFFSET(E153,1,0)<>"OVERDRAFT",I153<0),"ADD","nothing") -> nothing | P153: =ISBLANK(I153) -> TRUE | Q153: =ISBLANK(J153) -> TRUE
H154: =IF(E154="OVERDRAFT",H153,IFERROR(B154+LOOKUP(Register!C154,Trans_Type,DaysToClear),"")) ->  | K154: =OFFSET(K154,-1,0)+J154+I154 -> 320 | L154: x remove | M154: + add | N154: =IF(AND(OR(OFFSET(K154,-1,0)>=0,OFFSET(J154,-1,0)>0), E154="OVERDRAFT"),"REMOVE","nothing") -> nothing | O154: =IF(AND(K154<0, E154<>"OVERDRAFT",OFFSET(E154,1,0)<>"OVERDRAFT",I154<0),"ADD","nothing") -> nothing | P154: =ISBLANK(I154) -> TRUE | Q154: =ISBLANK(J154) -> TRUE
H155: =IF(E155="OVERDRAFT",H154,IFERROR(B155+LOOKUP(Register!C155,Trans_Type,DaysToClear),"")) ->  | K155: =OFFSET(K155,-1,0)+J155+I155 -> 320 | L155: x remove | M155: + add | N155: =IF(AND(OR(OFFSET(K155,-1,0)>=0,OFFSET(J155,-1,0)>0), E155="OVERDRAFT"),"REMOVE","nothing") -> nothing | O155: =IF(AND(K155<0, E155<>"OVERDRAFT",OFFSET(E155,1,0)<>"OVERDRAFT",I155<0),"ADD","nothing") -> nothing | P155: =ISBLANK(I155) -> TRUE | Q155: =ISBLANK(J155) -> TRUE
H156: =IF(E156="OVERDRAFT",H155,IFERROR(B156+LOOKUP(Register!C156,Trans_Type,DaysToClear),"")) ->  | K156: 320 | L156: x remove | M156: + add | N156: nothing | O156: nothing | P156: TRUE | Q156: TRUE
H157: =IF(E157="OVERDRAFT",H156,IFERROR(B157+LOOKUP(Register!C157,Trans_Type,DaysToClear),"")) ->  | K157: 320 | L157: x remove | M157: + add | N157: nothing | O157: nothing | P157: TRUE | Q157: TRUE
H158: =IF(E158="OVERDRAFT",H157,IFERROR(B158+LOOKUP(Register!C158,Trans_Type,DaysToClear),"")) ->  | K158: 320 | L158: x remove | M158: + add | N158: nothing | O158: nothing | P158: TRUE | Q158: TRUE
H159: =IF(E159="OVERDRAFT",H158,IFERROR(B159+LOOKUP(Register!C159,Trans_Type,DaysToClear),"")) ->  | K159: 320 | L159: x remove | M159: + add | N159: nothing | O159: nothing | P159: TRUE | Q159: TRUE
H160: =IF(E160="OVERDRAFT",H159,IFERROR(B160+LOOKUP(Register!C160,Trans_Type,DaysToClear),"")) ->  | K160: 320 | L160: x remove | M160: + add | N160: nothing | O160: nothing | P160: TRUE | Q160: TRUE
H161: =IF(E161="OVERDRAFT",H160,IFERROR(B161+LOOKUP(Register!C161,Trans_Type,DaysToClear),"")) ->  | K161: 320 | L161: x remove | M161: + add | N161: nothing | O161: nothing | P161: TRUE | Q161: TRUE
H162: =IF(E162="OVERDRAFT",H161,IFERROR(B162+LOOKUP(Register!C162,Trans_Type,DaysToClear),"")) ->  | K162: =OFFSET(K162,-1,0)+J162+I162 -> 320 | L162: x remove | M162: + add | N162: =IF(AND(OR(OFFSET(K162,-1,0)>=0,OFFSET(J162,-1,0)>0), E162="OVERDRAFT"),"REMOVE","nothing") -> nothing | O162: =IF(AND(K162<0, E162<>"OVERDRAFT",OFFSET(E162,1,0)<>"OVERDRAFT",I162<0),"ADD","nothing") -> nothing | P162: =ISBLANK(I162) -> TRUE | Q162: =ISBLANK(J162) -> TRUE
H163: =IF(E163="OVERDRAFT",H162,IFERROR(B163+LOOKUP(Register!C163,Trans_Type,DaysToClear),"")) ->  | K163: 320 | L163: x remove | M163: + add | N163: nothing | O163: nothing | P163: TRUE | Q163: TRUE
H164: =IF(E164="OVERDRAFT",H163,IFERROR(B164+LOOKUP(Register!C164,Trans_Type,DaysToClear),"")) ->  | K164: 320 | L164: x remove | M164: + add | N164: nothing | O164: nothing | P164: TRUE | Q164: TRUE
H165: =IF(E165="OVERDRAFT",H164,IFERROR(B165+LOOKUP(Register!C165,Trans_Type,DaysToClear),"")) ->  | K165: 320 | L165: x remove | M165: + add | N165: nothing | O165: nothing | P165: TRUE | Q165: TRUE
H166: =IF(E166="OVERDRAFT",H165,IFERROR(B166+LOOKUP(Register!C166,Trans_Type,DaysToClear),"")) ->  | K166: 320 | L166: x remove | M166: + add | N166: nothing | O166: nothing | P166: TRUE | Q166: TRUE
H167: =IF(E167="OVERDRAFT",H166,IFERROR(B167+LOOKUP(Register!C167,Trans_Type,DaysToClear),"")) ->  | K167: 320 | L167: x remove | M167: + add | N167: nothing | O167: nothing | P167: TRUE | Q167: TRUE
H168: =IF(E168="OVERDRAFT",H167,IFERROR(B168+LOOKUP(Register!C168,Trans_Type,DaysToClear),"")) ->  | K168: =OFFSET(K168,-1,0)+J168+I168 -> 320 | L168: x remove | M168: + add | N168: nothing | O168: nothing | P168: =ISBLANK(I168) -> TRUE | Q168: =ISBLANK(J168) -> TRUE
H169: =IF(E169="OVERDRAFT",H168,IFERROR(B169+LOOKUP(Register!C169,Trans_Type,DaysToClear),"")) ->  | K169: =OFFSET(K169,-1,0)+J169+I169 -> 320 | L169: x remove | M169: + add | N169: nothing | O169: nothing | P169: =ISBLANK(I169) -> TRUE | Q169: =ISBLANK(J169) -> TRUE
H170: =IF(E170="OVERDRAFT",H169,IFERROR(B170+LOOKUP(Register!C170,Trans_Type,DaysToClear),"")) ->  | K170: =OFFSET(K170,-1,0)+J170+I170 -> 320 | L170: x remove | M170: + add | N170: nothing | O170: nothing | P170: TRUE | Q170: TRUE
H171: =IF(E171="OVERDRAFT",H170,IFERROR(B171+LOOKUP(Register!C171,Trans_Type,DaysToClear),"")) ->  | K171: =OFFSET(K171,-1,0)+J171+I171 -> 320 | L171: x remove | M171: + add | N171: nothing | O171: nothing | P171: TRUE | Q171: TRUE
H172: =IF(E172="OVERDRAFT",H171,IFERROR(B172+LOOKUP(Register!C172,Trans_Type,DaysToClear),"")) ->  | K172: =OFFSET(K172,-1,0)+J172+I172 -> 320 | L172: x remove | P172: TRUE | Q172: TRUE
H173: =IF(E173="OVERDRAFT",H172,IFERROR(B173+LOOKUP(Register!C173,Trans_Type,DaysToClear),"")) ->  | K173: 320 | L173: x remove | P173: TRUE | Q173: TRUE
H174: =IF(E174="OVERDRAFT",H173,IFERROR(B174+LOOKUP(Register!C174,Trans_Type,DaysToClear),"")) ->  | K174: 320 | L174: x remove | P174: TRUE | Q174: TRUE
H175: =IF(E175="OVERDRAFT",H174,IFERROR(B175+LOOKUP(Register!C175,Trans_Type,DaysToClear),"")) ->  | K175: 320 | L175: x remove | P175: TRUE | Q175: TRUE
H176: =IF(E176="OVERDRAFT",H175,IFERROR(B176+LOOKUP(Register!C176,Trans_Type,DaysToClear),"")) ->  | K176: 320 | L176: x remove
H177: =IF(E177="OVERDRAFT",H176,IFERROR(B177+LOOKUP(Register!C177,Trans_Type,DaysToClear),"")) ->  | K177: 320 | L177: x remove
H178: =IF(E178="OVERDRAFT",H177,IFERROR(B178+LOOKUP(Register!C178,Trans_Type,DaysToClear),"")) ->  | L178: x remove
H179: =IF(E179="OVERDRAFT",H178,IFERROR(B179+LOOKUP(Register!C179,Trans_Type,DaysToClear),"")) ->  | L179: x remove

Sheet Statement
B2: Step 2: Statement Tab Once you have all of the information entered in the register, click on the Statement tab to review the transactions that have cleared. "Cleared" means the bank has received the transaction and it has been reflected in your account balance. Compare your ending balance on this statement to the ending balance in your transaction register and calculate the difference. What transactions account for the difference between the two? You can use the column labeled “Cleared Y or No” on the check register to indicate which transactions cleared and which haven’t. Add up the transactions that have not cleared; this will be your difference from the statement balance. The statement month can be selected using the filter on row 13.
E4: My Bank
E5: Monthly Statement
B7: Beginning Balance | C7: =Register!K9+AVERAGEIF(BudgetVwr_Source!K4:K150,"="&C13,BudgetVwr_Source!P4:P150) -> 100
B8: Total Credits | C8: =IFERROR(GETPIVOTDATA("Amount",$B$15,"Credit_Debit","Credit"),0) -> 2700
B9: Total Debits | C9: =IFERROR(GETPIVOTDATA("Amount",$B$15,"Credit_Debit","Debit"),0) -> -2230
B10: Ending Balance | C10: =SUM(C7:C9) -> 570
B13: Statement Month | C13: Sep-2016 | E13: (adjust filter as desired)
B15: Row Labels | C15: Clear_Date | D15: Date | E15: Description | F15: Sum of Amount
B16: Credit | F16: 2700
B17: Direct Deposit | F17: 2700
C18: 2016-09-01 | D18: 2016-09-01 | E18: Pay Day | F18: 1350
C19: 2016-09-15 | D19: 2016-09-15 | E19: Pay Day | F19: 1350
B21: Debit | F21: -2230
B22: Debit Card | F22: -535
C23: 2016-09-07 | D23: 2016-09-07 | E23: Groceries | F23: -125
C24: 2016-09-14 | D24: 2016-09-14 | E24: Oil Change | F24: -35
C25: 2016-09-20 | D25: 2016-09-20 | E25: Groceries | F25: -125
C26: 2016-09-29 | D26: 2016-09-29 | E26: Weekend Getaway | F26: -250
B28: Auto from Checking | F28: -1350
C29: 2016-09-01 | D29: 2016-09-01 | E29: September Rent - Due 9/1 | F29: -650
C30: 2016-09-12 | D30: 2016-09-12 | E30: Cell Phone | F30: -75
C31: 2016-09-14 | D31: 2016-09-14 | E31: Car Loan Payment | F31: -300
C32: 2016-09-14 | D32: 2016-09-14 | E32: Auto Insurance and Renter's Insurance | F32: -150
C33: 2016-09-24 | D33: 2016-09-24 | E33: Utilities | F33: -75
C34: 2016-09-29 | D34: 2016-09-29 | E34: Cable/Internet | F34: -100
B36: Auto to Savings | F36: -75
C37: 2016-09-01 | D37: 2016-09-01 | E37: Save for Emergency Fund | F37: -75
B39: ATM Cash | F39: -200
C40: 2016-09-08 | D40: 2016-09-08 | E40: Spending Money | F40: -100
C41: 2016-09-22 | D41: 2016-09-22 | E41: Spending Money | F41: -100
B43: Bank Fee | F43: -70
C44: 2016-09-14 | D44: 2016-09-14 | E44: OVERDRAFT | F44: -70

Sheet BudgetViewer
B2: Step 3: Budget Viewer Tab Review this tab to see your spending for the month. Are there any categories you could lower to increase the amount available to save? What are your largest spending categories?
D4: BUDGET VIEWER
D5: Categories by month
B8: Empty | C8: N
B10: Sum of Amount | E10: Column Labels
B11: Category | C11: Date | D11: Description | E11: September - 16 | F11: Grand Total
B12: Bank Fee | E12: -70 | F12: -70
C13: 2016-09-14 | D13: OVERDRAFT | E13: -70 | F13: -70
B15: Emergency Fund | E15: -75 | F15: -75
C16: 2016-09-01 | D16: Save for Emergency Fund | E16: -75 | F16: -75
B18: Entertainment | E18: -550 | F18: -550
C19: 2016-09-08 | D19: Spending Money | E19: -100 | F19: -100
C20: 2016-09-22 | D20: Spending Money | E20: -100 | F20: -100
C21: 2016-09-28 | D21: Pay back friend for concert ticket | E21: -100 | F21: -100
C22: 2016-09-29 | D22: Weekend Getaway | E22: -250 | F22: -250
B24: Groceries | E24: -250 | F24: -250
C25: 2016-09-07 | D25: Groceries | E25: -125 | F25: -125
C26: 2016-09-20 | D26: Groceries | E26: -125 | F26: -125
B28: Housing/Rent | E28: -650 | F28: -650
C29: 2016-09-01 | D29: September Rent - Due 9/1 | E29: -650 | F29: -650
B31: Income | E31: 2700 | F31: 2700
C32: 2016-09-01 | D32: Pay Day | E32: 1350 | F32: 1350
C33: 2016-09-15 | D33: Pay Day | E33: 1350 | F33: 1350
B35: Insurance | E35: -150 | F35: -150
C36: 2016-09-14 | D36: Auto Insurance and Renter's Insurance | E36: -150 | F36: -150
B38: Loan Payment | E38: -450 | F38: -450
C39: 2016-09-14 | D39: Car Loan Payment | E39: -300 | F39: -300
C40: 2016-09-28 | D40: Student Loan Payment | E40: -150 | F40: -150
B42: Travel | E42: -35 | F42: -35
C43: 2016-09-14 | D43: Oil Change | E43: -35 | F43: -35
B45: Utilities | E45: -250 | F45: -250
C46: 2016-09-24 | D46: Utilities | E46: -75 | F46: -75
C47: 2016-09-12 | D47: Cell Phone | E47: -75 | F47: -75
C48: 2016-09-29 | D48: Cable/Internet | E48: -100 | F48: -100
B50: Grand Total | E50: 220 | F50: 220

Sheet BudgetVwr_Source (hidden)
A1: For Budget viewer | C1: DO NOT DELETE
A3: Year | B3: Month | C3: Amount | D3: Date | E3: Category | F3: Type | G3: Description | H3: Empty | I3: Clear_Date | J3: Clear_YM | K3: Statement Month | L3: Clear_Year | M3: Debit | N3: Credit | O3: Credit_Debit | P3: Upto_M_bal
A4: =YEAR(Register!B10) -> 2016 | B4: =TEXT(Register!B10,"mmmm - yy") -> September - 16 | C4: =Register!I10+Register!J10 -> 1350 | D4: =IF(Register!B10="","",Register!B10) -> 2016-09-01 | E4: =IF(Register!F10="","(blank line)",Register!F10) -> Income | F4: =Register!C10 -> Direct Deposit | G4: =IF(Register!D10="",IF(Register!E10="","(empty description)",Register!E10),CONCATENATE(Register!D10," - ",Register!E10)) -> Pay Day | H4: =IF(C4=0,"Y","N") -> N | I4: =Register!H10 -> 2016-09-01 | J4: =L4*100+MONTH(I4) -> 201609 | K4: =TEXT(Register!H10,"mmm-yyyy") -> Sep-2016 | L4: =YEAR(Register!H10) -> 2016 | M4: =Register!I10 -> 0 | N4: =Register!J10 -> 1350 | O4: =IF(M4<0,"Debit","Credit") -> Credit | P4: =SUMIF(J$4:J$150,"<"&J4,C$4:C$150) -> 0
A5: =YEAR(Register!B11) -> 2016 | B5: =TEXT(Register!B11,"mmmm - yy") -> September - 16 | C5: =Register!I11+Register!J11 -> -650 | D5: =IF(Register!B11="","",Register!B11) -> 2016-09-01 | E5: =IF(Register!F11="","(blank line)",Register!F11) -> Housing/Rent | F5: =Register!C11 -> Auto from Checking | G5: =IF(Register!D11="",IF(Register!E11="","(empty description)",Register!E11),CONCATENATE(Register!D11," - ",Register!E11)) -> September Rent - Due 9/1 | H5: =IF(C5=0,"Y","N") -> N | I5: =Register!H11 -> 2016-09-01 | J5: =L5*100+MONTH(I5) -> 201609 | K5: =TEXT(Register!H11,"mmm-yyyy") -> Sep-2016 | L5: =YEAR(Register!H11) -> 2016 | M5: =Register!I11 -> -650 | N5: =Register!J11 -> 0 | O5: =IF(M5<0,"Debit","Credit") -> Debit | P5: =SUMIF(J$4:J$150,"<"&J5,C$4:C$150) -> 0
A6: =YEAR(Register!B12) -> 2016 | B6: =TEXT(Register!B12,"mmmm - yy") -> September - 16 | C6: =Register!I12+Register!J12 -> -75 | D6: =IF(Register!B12="","",Register!B12) -> 2016-09-01 | E6: =IF(Register!F12="","(blank line)",Register!F12) -> Emergency Fund | F6: =Register!C12 -> Auto to Savings | G6: =IF(Register!D12="",IF(Register!E12="","(empty description)",Register!E12),CONCATENATE(Register!D12," - ",Register!E12)) -> Save for Emergency Fund | H6: N | I6: =Register!H12 -> 2016-09-01 | J6: 201609 | K6: =TEXT(Register!H12,"mmm-yyyy") -> Sep-2016 | L6: =YEAR(Register!H12) -> 2016 | M6: =Register!I12 -> -75 | N6: =Register!J12 -> 0 | O6: Debit | P6: 0
A7: =YEAR(Register!B13) -> 2016 | B7: =TEXT(Register!B13,"mmmm - yy") -> September - 16 | C7: =Register!I13+Register!J13 -> -125 | D7: =IF(Register!B13="","",Register!B13) -> 2016-09-07 | E7: =IF(Register!F13="","(blank line)",Register!F13) -> Groceries | F7: =Register!C13 -> Debit Card | G7: =IF(Register!D13="",IF(Register!E13="","(empty description)",Register!E13),CONCATENATE(Register!D13," - ",Register!E13)) -> Groceries | H7: N | I7: =Register!H13 -> 2016-09-07 | J7: 201609 | K7: =TEXT(Register!H13,"mmm-yyyy") -> Sep-2016 | L7: =YEAR(Register!H13) -> 2016 | M7: =Register!I13 -> -125 | N7: =Register!J13 -> 0 | O7: Debit | P7: 0
A8: =YEAR(Register!B14) -> 2016 | B8: =TEXT(Register!B14,"mmmm - yy") -> September - 16 | C8: =Register!I14+Register!J14 -> -100 | D8: =IF(Register!B14="","",Register!B14) -> 2016-09-08 | E8: =IF(Register!F14="","(blank line)",Register!F14) -> Entertainment | F8: =Register!C14 -> ATM Cash | G8: =IF(Register!D14="",IF(Register!E14="","(empty description)",Register!E14),CONCATENATE(Register!D14," - ",Register!E14)) -> Spending Money | H8: N | I8: =Register!H14 -> 2016-09-08 | J8: 201609 | K8: =TEXT(Register!H14,"mmm-yyyy") -> Sep-2016 | L8: =YEAR(Register!H14) -> 2016 | M8: =Register!I14 -> -100 | N8: =Register!J14 -> 0 | O8: Debit | P8: 0
A9: =YEAR(Register!B15) -> 2016 | B9: =TEXT(Register!B15,"mmmm - yy") -> September - 16 | C9: =Register!I15+Register!J15 -> -75 | D9: =IF(Register!B15="","",Register!B15) -> 2016-09-12 | E9: =IF(Register!F15="","(blank line)",Register!F15) -> Utilities | F9: =Register!C15 -> Auto from Checking | G9: =IF(Register!D15="",IF(Register!E15="","(empty description)",Register!E15),CONCATENATE(Register!D15," - ",Register!E15)) -> Cell Phone | H9: N | I9: =Register!H15 -> 2016-09-12 | J9: 201609 | K9: =TEXT(Register!H15,"mmm-yyyy") -> Sep-2016 | L9: =YEAR(Register!H15) -> 2016 | M9: =Register!I15 -> -75 | N9: =Register!J15 -> 0 | O9: Debit | P9: 0
A10: =YEAR(Register!B16) -> 2016 | B10: =TEXT(Register!B16,"mmmm - yy") -> September - 16 | C10: =Register!I16+Register!J16 -> -300 | D10: =IF(Register!B16="","",Register!B16) -> 2016-09-14 | E10: =IF(Register!F16="","(blank line)",Register!F16) -> Loan Payment | F10: =Register!C16 -> Auto from Checking | G10: =IF(Register!D16="",IF(Register!E16="","(empty description)",Register!E16),CONCATENATE(Register!D16," - ",Register!E16)) -> Car Loan Payment | H10: N | I10: =Register!H16 -> 2016-09-14 | J10: 201609 | K10: =TEXT(Register!H16,"mmm-yyyy") -> Sep-2016 | L10: =YEAR(Register!H16) -> 2016 | M10: =Register!I16 -> -300 | N10: =Register!J16 -> 0 | O10: Debit | P10: 0
A11: =YEAR(Register!B17) -> 2016 | B11: =TEXT(Register!B17,"mmmm - yy") -> September - 16 | C11: =Register!I17+Register!J17 -> -150 | D11: =IF(Register!B17="","",Register!B17) -> 2016-09-14 | E11: =IF(Register!F17="","(blank line)",Register!F17) -> Insurance | F11: =Register!C17 -> Auto from Checking | G11: =IF(Register!D17="",IF(Register!E17="","(empty description)",Register!E17),CONCATENATE(Register!D17," - ",Register!E17)) -> Auto Insurance and Renter's Insurance | H11: N | I11: =Register!H17 -> 2016-09-14 | J11: 201609 | K11: =TEXT(Register!H17,"mmm-yyyy") -> Sep-2016 | L11: =YEAR(Register!H17) -> 2016 | M11: =Register!I17 -> -150 | N11: =Register!J17 -> 0 | O11: Debit | P11: 0
A12: =YEAR(Register!B18) -> 2016 | B12: =TEXT(Register!B18,"mmmm - yy") -> September - 16 | C12: =Register!I18+Register!J18 -> -35 | D12: =IF(Register!B18="","",Register!B18) -> 2016-09-14 | E12: =IF(Register!F18="","(blank line)",Register!F18) -> Bank Fee | F12: =Register!C18 -> Bank Fee | G12: =IF(Register!D18="",IF(Register!E18="","(empty description)",Register!E18),CONCATENATE(Register!D18," - ",Register!E18)) -> OVERDRAFT | H12: N | I12: =Register!H18 -> 2016-09-14 | J12: 201609 | K12: =TEXT(Register!H18,"mmm-yyyy") -> Sep-2016 | L12: =YEAR(Register!H18) -> 2016 | M12: =Register!I18 -> -35 | N12: =Register!J18 -> 0 | O12: Debit | P12: 0
A13: =YEAR(Register!B19) -> 2016 | B13: =TEXT(Register!B19,"mmmm - yy") -> September - 16 | C13: =Register!I19+Register!J19 -> -35 | D13: =IF(Register!B19="","",Register!B19) -> 2016-09-14 | E13: =IF(Register!F19="","(blank line)",Register!F19) -> Travel | F13: =Register!C19 -> Debit Card | G13: =IF(Register!D19="",IF(Register!E19="","(empty description)",Register!E19),CONCATENATE(Register!D19," - ",Register!E19)) -> Oil Change | H13: N | I13: =Register!H19 -> 2016-09-14 | J13: 201609 | K13: =TEXT(Register!H19,"mmm-yyyy") -> Sep-2016 | L13: =YEAR(Register!H19) -> 2016 | M13: =Register!I19 -> -35 | N13: =Register!J19 -> 0 | O13: Debit | P13: 0
A14: =YEAR(Register!B20) -> 2016 | B14: =TEXT(Register!B20,"mmmm - yy") -> September - 16 | C14: =Register!I20+Register!J20 -> -35 | D14: =IF(Register!B20="","",Register!B20) -> 2016-09-14 | E14: =IF(Register!F20="","(blank line)",Register!F20) -> Bank Fee | F14: =Register!C20 -> Bank Fee | G14: =IF(Register!D20="",IF(Register!E20="","(empty description)",Register!E20),CONCATENATE(Register!D20," - ",Register!E20)) -> OVERDRAFT | H14: N | I14: =Register!H20 -> 2016-09-14 | J14: 201609 | K14: =TEXT(Register!H20,"mmm-yyyy") -> Sep-2016 | L14: =YEAR(Register!H20) -> 2016 | M14: =Register!I20 -> -35 | N14: =Register!J20 -> 0 | O14: Debit | P14: 0
A15: =YEAR(Register!B21) -> 2016 | B15: =TEXT(Register!B21,"mmmm - yy") -> September - 16 | C15: =Register!I21+Register!J21 -> 1350 | D15: =IF(Register!B21="","",Register!B21) -> 2016-09-15 | E15: =IF(Register!F21="","(blank line)",Register!F21) -> Income | F15: =Register!C21 -> Direct Deposit | G15: =IF(Register!D21="",IF(Register!E21="","(empty description)",Register!E21),CONCATENATE(Register!D21," - ",Register!E21)) -> Pay Day | H15: N | I15: =Register!H21 -> 2016-09-15 | J15: 201609 | K15: =TEXT(Register!H21,"mmm-yyyy") -> Sep-2016 | L15: =YEAR(Register!H21) -> 2016 | M15: =Register!I21 -> 0 | N15: =Register!J21 -> 1350 | O15: Credit | P15: 0
A16: =YEAR(Register!B22) -> 2016 | B16: =TEXT(Register!B22,"mmmm - yy") -> September - 16 | C16: =Register!I22+Register!J22 -> -125 | D16: =IF(Register!B22="","",Register!B22) -> 2016-09-20 | E16: =IF(Register!F22="","(blank line)",Register!F22) -> Groceries | F16: =Register!C22 -> Debit Card | G16: =IF(Register!D22="",IF(Register!E22="","(empty description)",Register!E22),CONCATENATE(Register!D22," - ",Register!E22)) -> Groceries | H16: N | I16: =Register!H22 -> 2016-09-20 | J16: 201609 | K16: =TEXT(Register!H22,"mmm-yyyy") -> Sep-2016 | L16: =YEAR(Register!H22) -> 2016 | M16: =Register!I22 -> -125 | N16: =Register!J22 -> 0 | O16: Debit | P16: 0
A17: =YEAR(Register!B23) -> 2016 | B17: =TEXT(Register!B23,"mmmm - yy") -> September - 16 | C17: =Register!I23+Register!J23 -> -100 | D17: =IF(Register!B23="","",Register!B23) -> 2016-09-22 | E17: =IF(Register!F23="","(blank line)",Register!F23) -> Entertainment | F17: =Register!C23 -> ATM Cash | G17: =IF(Register!D23="",IF(Register!E23="","(empty description)",Register!E23),CONCATENATE(Register!D23," - ",Register!E23)) -> Spending Money | H17: N | I17: =Register!H23 -> 2016-09-22 | J17: 201609 | K17: =TEXT(Register!H23,"mmm-yyyy") -> Sep-2016 | L17: =YEAR(Register!H23) -> 2016 | M17: =Register!I23 -> -100 | N17: =Register!J23 -> 0 | O17: Debit | P17: 0
A18: =YEAR(Register!B24) -> 2016 | B18: =TEXT(Register!B24,"mmmm - yy") -> September - 16 | C18: =Register!I24+Register!J24 -> -75 | D18: =IF(Register!B24="","",Register!B24) -> 2016-09-24 | E18: =IF(Register!F24="","(blank line)",Register!F24) -> Utilities | F18: =Register!C24 -> Auto from Checking | G18: =IF(Register!D24="",IF(Register!E24="","(empty description)",Register!E24),CONCATENATE(Register!D24," - ",Register!E24)) -> Utilities | H18: N | I18: =Register!H24 -> 2016-09-24 | J18: 201609 | K18: =TEXT(Register!H24,"mmm-yyyy") -> Sep-2016 | L18: =YEAR(Register!H24) -> 2016 | M18: =Register!I24 -> -75 | N18: =Register!J24 -> 0 | O18: Debit | P18: 0
A19: =YEAR(Register!B25) -> 2016 | B19: =TEXT(Register!B25,"mmmm - yy") -> September - 16 | C19: =Register!I25+Register!J25 -> -150 | D19: =IF(Register!B25="","",Register!B25) -> 2016-09-28 | E19: =IF(Register!F25="","(blank line)",Register!F25) -> Loan Payment | F19: =Register!C25 -> Check | G19: =IF(Register!D25="",IF(Register!E25="","(empty description)",Register!E25),CONCATENATE(Register!D25," - ",Register!E25)) -> Student Loan Payment | H19: N | I19: =Register!H25 -> 2016-10-03 | J19: 201610 | K19: =TEXT(Register!H25,"mmm-yyyy") -> Oct-2016 | L19: =YEAR(Register!H25) -> 2016 | M19: =Register!I25 -> -150 | N19: =Register!J25 -> 0 | O19: Debit | P19: 470
A20: =YEAR(Register!B26) -> 2016 | B20: =TEXT(Register!B26,"mmmm - yy") -> September - 16 | C20: =Register!I26+Register!J26 -> -100 | D20: =IF(Register!B26="","",Register!B26) -> 2016-09-29 | E20: =IF(Register!F26="","(blank line)",Register!F26) -> Utilities | F20: =Register!C26 -> Auto from Checking | G20: =IF(Register!D26="",IF(Register!E26="","(empty description)",Register!E26),CONCATENATE(Register!D26," - ",Register!E26)) -> Cable/Internet | H20: N | I20: =Register!H26 -> 2016-09-29 | J20: 201609 | K20: =TEXT(Register!H26,"mmm-yyyy") -> Sep-2016 | L20: =YEAR(Register!H26) -> 2016 | M20: =Register!I26 -> -100 | N20: =Register!J26 -> 0 | O20: Debit | P20: 0
A21: =YEAR(Register!B27) -> 2016 | B21: =TEXT(Register!B27,"mmmm - yy") -> September - 16 | C21: =Register!I27+Register!J27 -> -100 | D21: =IF(Register!B27="","",Register!B27) -> 2016-09-28 | E21: =IF(Register!F27="","(blank line)",Register!F27) -> Entertainment | F21: =Register!C27 -> Check | G21: =IF(Register!D27="",IF(Register!E27="","(empty description)",Register!E27),CONCATENATE(Register!D27," - ",Register!E27)) -> Pay back friend for concert ticket | H21: N | I21: =Register!H27 -> 2016-10-03 | J21: 201610 | K21: =TEXT(Register!H27,"mmm-yyyy") -> Oct-2016 | L21: =YEAR(Register!H27) -> 2016 | M21: =Register!I27 -> -100 | N21: =Register!J27 -> 0 | O21: Debit | P21: 470
A22: =YEAR(Register!B28) -> 2016 | B22: =TEXT(Register!B28,"mmmm - yy") -> September - 16 | C22: =Register!I28+Register!J28 -> -250 | D22: =IF(Register!B28="","",Register!B28) -> 2016-09-29 | E22: =IF(Register!F28="","(blank line)",Register!F28) -> Entertainment | F22: =Register!C28 -> Debit Card | G22: =IF(Register!D28="",IF(Register!E28="","(empty description)",Register!E28),CONCATENATE(Register!D28," - ",Register!E28)) -> Weekend Getaway | H22: N | I22: =Register!H28 -> 2016-09-29 | J22: 201609 | K22: =TEXT(Register!H28,"mmm-yyyy") -> Sep-2016 | L22: =YEAR(Register!H28) -> 2016 | M22: =Register!I28 -> -250 | N22: =Register!J28 -> 0 | O22: Debit | P22: 0
A23: =YEAR(Register!B29) -> 1900 | B23: =TEXT(Register!B29,"mmmm - yy") -> January - 00 | C23: =Register!I29+Register!J29 -> 0 | D23: =IF(Register!B29="","",Register!B29) ->  | E23: =IF(Register!F29="","(blank line)",Register!F29) -> (blank line) | F23: =Register!C29 -> 00:00:00 | G23: =IF(Register!D29="",IF(Register!E29="","(empty description)",Register!E29),CONCATENATE(Register!D29," - ",Register!E29)) -> (empty description) | H23: Y | I23: =Register!H29 ->  | K23: =TEXT(Register!H29,"mmm-yyyy") ->  | L23: =YEAR(Register!H29) ->  | M23: =Register!I29 -> 0 | N23: =Register!J29 -> 0 | O23: Credit | P23: 0
A24: =YEAR(Register!B30) -> 1900 | B24: =TEXT(Register!B30,"mmmm - yy") -> January - 00 | C24: =Register!I30+Register!J30 -> 0 | D24: =IF(Register!B30="","",Register!B30) ->  | E24: =IF(Register!F30="","(blank line)",Register!F30) -> (blank line) | F24: =Register!C30 -> 00:00:00 | G24: =IF(Register!D30="",IF(Register!E30="","(empty description)",Register!E30),CONCATENATE(Register!D30," - ",Register!E30)) -> (empty description) | H24: Y | I24: =Register!H30 ->  | K24: =TEXT(Register!H30,"mmm-yyyy") ->  | L24: =YEAR(Register!H30) ->  | M24: =Register!I30 -> 0 | N24: =Register!J30 -> 0 | O24: Credit | P24: 0
A25: =YEAR(Register!B31) -> 1900 | B25: =TEXT(Register!B31,"mmmm - yy") -> January - 00 | C25: =Register!I31+Register!J31 -> 0 | D25: =IF(Register!B31="","",Register!B31) ->  | E25: =IF(Register!F31="","(blank line)",Register!F31) -> (blank line) | F25: =Register!C31 -> 00:00:00 | G25: =IF(Register!D31="",IF(Register!E31="","(empty description)",Register!E31),CONCATENATE(Register!D31," - ",Register!E31)) -> (empty description) | H25: Y | I25: =Register!H31 ->  | K25: =TEXT(Register!H31,"mmm-yyyy") ->  | L25: =YEAR(Register!H31) ->  | M25: =Register!I31 -> 0 | N25: =Register!J31 -> 0 | O25: Credit | P25: 0
A26: =YEAR(Register!B32) -> 1900 | B26: =TEXT(Register!B32,"mmmm - yy") -> January - 00 | C26: =Register!I32+Register!J32 -> 0 | D26: =IF(Register!B32="","",Register!B32) ->  | E26: =IF(Register!F32="","(blank line)",Register!F32) -> (blank line) | F26: =Register!C32 -> 00:00:00 | G26: =IF(Register!D32="",IF(Register!E32="","(empty description)",Register!E32),CONCATENATE(Register!D32," - ",Register!E32)) -> (empty description) | H26: Y | I26: =Register!H32 ->  | K26: =TEXT(Register!H32,"mmm-yyyy") ->  | L26: =YEAR(Register!H32) ->  | M26: =Register!I32 -> 0 | N26: =Register!J32 -> 0 | O26: Credit | P26: 0
A27: =YEAR(Register!B33) -> 1900 | B27: =TEXT(Register!B33,"mmmm - yy") -> January - 00 | C27: =Register!I33+Register!J33 -> 0 | D27: =IF(Register!B33="","",Register!B33) ->  | E27: =IF(Register!F33="","(blank line)",Register!F33) -> (blank line) | F27: =Register!C33 -> 00:00:00 | G27: =IF(Register!D33="",IF(Register!E33="","(empty description)",Register!E33),CONCATENATE(Register!D33," - ",Register!E33)) -> (empty description) | H27: Y | I27: =Register!H33 ->  | K27: =TEXT(Register!H33,"mmm-yyyy") ->  | L27: =YEAR(Register!H33) ->  | M27: =Register!I33 -> 0 | N27: =Register!J33 -> 0 | O27: Credit | P27: 0
A28: =YEAR(Register!B34) -> 1900 | B28: =TEXT(Register!B34,"mmmm - yy") -> January - 00 | C28: =Register!I34+Register!J34 -> 0 | D28: =IF(Register!B34="","",Register!B34) ->  | E28: =IF(Register!F34="","(blank line)",Register!F34) -> (blank line) | F28: =Register!C34 -> 00:00:00 | G28: =IF(Register!D34="",IF(Register!E34="","(empty description)",Register!E34),CONCATENATE(Register!D34," - ",Register!E34)) -> (empty description) | H28: Y | I28: =Register!H34 ->  | K28: =TEXT(Register!H34,"mmm-yyyy") ->  | L28: =YEAR(Register!H34) ->  | M28: =Register!I34 -> 0 | N28: =Register!J34 -> 0 | O28: Credit | P28: 0
A29: =YEAR(Register!B35) -> 1900 | B29: =TEXT(Register!B35,"mmmm - yy") -> January - 00 | C29: =Register!I35+Register!J35 -> 0 | D29: =IF(Register!B35="","",Register!B35) ->  | E29: =IF(Register!F35="","(blank line)",Register!F35) -> (blank line) | F29: =Register!C35 -> 00:00:00 | G29: =IF(Register!D35="",IF(Register!E35="","(empty description)",Register!E35),CONCATENATE(Register!D35," - ",Register!E35)) -> (empty description) | H29: Y | I29: =Register!H35 ->  | K29: =TEXT(Register!H35,"mmm-yyyy") ->  | L29: =YEAR(Register!H35) ->  | M29: =Register!I35 -> 0 | N29: =Register!J35 -> 0 | O29: Credit | P29: 0
A30: =YEAR(Register!B36) -> 1900 | B30: =TEXT(Register!B36,"mmmm - yy") -> January - 00 | C30: =Register!I36+Register!J36 -> 0 | D30: =IF(Register!B36="","",Register!B36) ->  | E30: =IF(Register!F36="","(blank line)",Register!F36) -> (blank line) | F30: =Register!C36 -> 00:00:00 | G30: =IF(Register!D36="",IF(Register!E36="","(empty description)",Register!E36),CONCATENATE(Register!D36," - ",Register!E36)) -> (empty description) | H30: Y | I30: =Register!H36 ->  | K30: =TEXT(Register!H36,"mmm-yyyy") ->  | L30: =YEAR(Register!H36) ->  | M30: =Register!I36 -> 0 | N30: =Register!J36 -> 0 | O30: Credit | P30: 0
A31: =YEAR(Register!B37) -> 1900 | B31: =TEXT(Register!B37,"mmmm - yy") -> January - 00 | C31: =Register!I37+Register!J37 -> 0 | D31: =IF(Register!B37="","",Register!B37) ->  | E31: =IF(Register!F37="","(blank line)",Register!F37) -> (blank line) | F31: =Register!C37 -> 00:00:00 | G31: =IF(Register!D37="",IF(Register!E37="","(empty description)",Register!E37),CONCATENATE(Register!D37," - ",Register!E37)) -> (empty description) | H31: Y | I31: =Register!H37 ->  | K31: =TEXT(Register!H37,"mmm-yyyy") ->  | L31: =YEAR(Register!H37) ->  | M31: =Register!I37 -> 0 | N31: =Register!J37 -> 0 | O31: Credit | P31: 0
A32: =YEAR(Register!B38) -> 1900 | B32: =TEXT(Register!B38,"mmmm - yy") -> January - 00 | C32: =Register!I38+Register!J38 -> 0 | D32: =IF(Register!B38="","",Register!B38) ->  | E32: =IF(Register!F38="","(blank line)",Register!F38) -> (blank line) | F32: =Register!C38 -> 00:00:00 | G32: =IF(Register!D38="",IF(Register!E38="","(empty description)",Register!E38),CONCATENATE(Register!D38," - ",Register!E38)) -> (empty description) | H32: Y | I32: =Register!H38 ->  | K32: =TEXT(Register!H38,"mmm-yyyy") ->  | L32: =YEAR(Register!H38) ->  | M32: =Register!I38 -> 0 | N32: =Register!J38 -> 0 | O32: Credit | P32: 0
A33: =YEAR(Register!B39) -> 1900 | B33: =TEXT(Register!B39,"mmmm - yy") -> January - 00 | C33: =Register!I39+Register!J39 -> 0 | D33: =IF(Register!B39="","",Register!B39) ->  | E33: =IF(Register!F39="","(blank line)",Register!F39) -> (blank line) | F33: =Register!C39 -> 00:00:00 | G33: =IF(Register!D39="",IF(Register!E39="","(empty description)",Register!E39),CONCATENATE(Register!D39," - ",Register!E39)) -> (empty description) | H33: Y | I33: =Register!H39 ->  | K33: =TEXT(Register!H39,"mmm-yyyy") ->  | L33: =YEAR(Register!H39) ->  | M33: =Register!I39 -> 0 | N33: =Register!J39 -> 0 | O33: Credit | P33: 0
A34: =YEAR(Register!B40) -> 1900 | B34: =TEXT(Register!B40,"mmmm - yy") -> January - 00 | C34: =Register!I40+Register!J40 -> 0 | D34: =IF(Register!B40="","",Register!B40) ->  | E34: =IF(Register!F40="","(blank line)",Register!F40) -> (blank line) | F34: =Register!C40 -> 00:00:00 | G34: =IF(Register!D40="",IF(Register!E40="","(empty description)",Register!E40),CONCATENATE(Register!D40," - ",Register!E40)) -> (empty description) | H34: Y | I34: =Register!H40 ->  | K34: =TEXT(Register!H40,"mmm-yyyy") ->  | L34: =YEAR(Register!H40) ->  | M34: =Register!I40 -> 0 | N34: =Register!J40 -> 0 | O34: Credit | P34: 0
A35: =YEAR(Register!B41) -> 1900 | B35: =TEXT(Register!B41,"mmmm - yy") -> January - 00 | C35: =Register!I41+Register!J41 -> 0 | D35: =IF(Register!B41="","",Register!B41) ->  | E35: =IF(Register!F41="","(blank line)",Register!F41) -> (blank line) | F35: =Register!C41 -> 00:00:00 | G35: =IF(Register!D41="",IF(Register!E41="","(empty description)",Register!E41),CONCATENATE(Register!D41," - ",Register!E41)) -> (empty description) | H35: Y | I35: =Register!H41 ->  | K35: =TEXT(Register!H41,"mmm-yyyy") ->  | L35: =YEAR(Register!H41) ->  | M35: =Register!I41 -> 0 | N35: =Register!J41 -> 0 | O35: Credit | P35: 0
A36: =YEAR(Register!B42) -> 1900 | B36: =TEXT(Register!B42,"mmmm - yy") -> January - 00 | C36: =Register!I42+Register!J42 -> 0 | D36: =IF(Register!B42="","",Register!B42) ->  | E36: =IF(Register!F42="","(blank line)",Register!F42) -> (blank line) | F36: =Register!C42 -> 00:00:00 | G36: =IF(Register!D42="",IF(Register!E42="","(empty description)",Register!E42),CONCATENATE(Register!D42," - ",Register!E42)) -> (empty description) | H36: Y | I36: =Register!H42 ->  | K36: =TEXT(Register!H42,"mmm-yyyy") ->  | L36: =YEAR(Register!H42) ->  | M36: =Register!I42 -> 0 | N36: =Register!J42 -> 0 | O36: Credit | P36: 0
A37: =YEAR(Register!B43) -> 1900 | B37: =TEXT(Register!B43,"mmmm - yy") -> January - 00 | C37: =Register!I43+Register!J43 -> 0 | D37: =IF(Register!B43="","",Register!B43) ->  | E37: =IF(Register!F43="","(blank line)",Register!F43) -> (blank line) | F37: =Register!C43 -> 00:00:00 | G37: =IF(Register!D43="",IF(Register!E43="","(empty description)",Register!E43),CONCATENATE(Register!D43," - ",Register!E43)) -> (empty description) | H37: Y | I37: =Register!H43 ->  | K37: =TEXT(Register!H43,"mmm-yyyy") ->  | L37: =YEAR(Register!H43) ->  | M37: =Register!I43 -> 0 | N37: =Register!J43 -> 0 | O37: Credit | P37: 0
A38: =YEAR(Register!B44) -> 1900 | B38: =TEXT(Register!B44,"mmmm - yy") -> January - 00 | C38: =Register!I44+Register!J44 -> 0 | D38: =IF(Register!B44="","",Register!B44) ->  | E38: =IF(Register!F44="","(blank line)",Register!F44) -> (blank line) | F38: =Register!C44 -> 00:00:00 | G38: =IF(Register!D44="",IF(Register!E44="","(empty description)",Register!E44),CONCATENATE(Register!D44," - ",Register!E44)) -> (empty description) | H38: Y | I38: =Register!H44 ->  | K38: =TEXT(Register!H44,"mmm-yyyy") ->  | L38: =YEAR(Register!H44) ->  | M38: =Register!I44 -> 0 | N38: =Register!J44 -> 0 | O38: Credit | P38: 0
A39: =YEAR(Register!B45) -> 1900 | B39: =TEXT(Register!B45,"mmmm - yy") -> January - 00 | C39: =Register!I45+Register!J45 -> 0 | D39: =IF(Register!B45="","",Register!B45) ->  | E39: =IF(Register!F45="","(blank line)",Register!F45) -> (blank line) | F39: =Register!C45 -> 00:00:00 | G39: =IF(Register!D45="",IF(Register!E45="","(empty description)",Register!E45),CONCATENATE(Register!D45," - ",Register!E45)) -> (empty description) | H39: Y | I39: =Register!H45 ->  | K39: =TEXT(Register!H45,"mmm-yyyy") ->  | L39: =YEAR(Register!H45) ->  | M39: =Register!I45 -> 0 | N39: =Register!J45 -> 0 | O39: Credit | P39: 0
A40: =YEAR(Register!B46) -> 1900 | B40: =TEXT(Register!B46,"mmmm - yy") -> January - 00 | C40: =Register!I46+Register!J46 -> 0 | D40: =IF(Register!B46="","",Register!B46) ->  | E40: =IF(Register!F46="","(blank line)",Register!F46) -> (blank line) | F40: =Register!C46 -> 00:00:00 | G40: =IF(Register!D46="",IF(Register!E46="","(empty description)",Register!E46),CONCATENATE(Register!D46," - ",Register!E46)) -> (empty description) | H40: Y | I40: =Register!H46 ->  | K40: =TEXT(Register!H46,"mmm-yyyy") ->  | L40: =YEAR(Register!H46) ->  | M40: =Register!I46 -> 0 | N40: =Register!J46 -> 0 | O40: Credit | P40: 0
A41: =YEAR(Register!B47) -> 1900 | B41: =TEXT(Register!B47,"mmmm - yy") -> January - 00 | C41: =Register!I47+Register!J47 -> 0 | D41: =IF(Register!B47="","",Register!B47) ->  | E41: =IF(Register!F47="","(blank line)",Register!F47) -> (blank line) | F41: =Register!C47 -> 00:00:00 | G41: =IF(Register!D47="",IF(Register!E47="","(empty description)",Register!E47),CONCATENATE(Register!D47," - ",Register!E47)) -> (empty description) | H41: Y | I41: =Register!H47 ->  | K41: =TEXT(Register!H47,"mmm-yyyy") ->  | L41: =YEAR(Register!H47) ->  | M41: =Register!I47 -> 0 | N41: =Register!J47 -> 0 | O41: Credit | P41: 0
A42: =YEAR(Register!B48) -> 1900 | B42: =TEXT(Register!B48,"mmmm - yy") -> January - 00 | C42: =Register!I48+Register!J48 -> 0 | D42: =IF(Register!B48="","",Register!B48) ->  | E42: =IF(Register!F48="","(blank line)",Register!F48) -> (blank line) | F42: =Register!C48 -> 00:00:00 | G42: =IF(Register!D48="",IF(Register!E48="","(empty description)",Register!E48),CONCATENATE(Register!D48," - ",Register!E48)) -> (empty description) | H42: Y | I42: =Register!H48 ->  | K42: =TEXT(Register!H48,"mmm-yyyy") ->  | L42: =YEAR(Register!H48) ->  | M42: =Register!I48 -> 0 | N42: =Register!J48 -> 0 | O42: Credit | P42: 0
A43: =YEAR(Register!B49) -> 1900 | B43: =TEXT(Register!B49,"mmmm - yy") -> January - 00 | C43: =Register!I49+Register!J49 -> 0 | D43: =IF(Register!B49="","",Register!B49) ->  | E43: =IF(Register!F49="","(blank line)",Register!F49) -> (blank line) | F43: =Register!C49 -> 00:00:00 | G43: =IF(Register!D49="",IF(Register!E49="","(empty description)",Register!E49),CONCATENATE(Register!D49," - ",Register!E49)) -> (empty description) | H43: Y | I43: =Register!H49 ->  | K43: =TEXT(Register!H49,"mmm-yyyy") ->  | L43: =YEAR(Register!H49) ->  | M43: =Register!I49 -> 0 | N43: =Register!J49 -> 0 | O43: Credit | P43: 0
A44: =YEAR(Register!B50) -> 1900 | B44: =TEXT(Register!B50,"mmmm - yy") -> January - 00 | C44: =Register!I50+Register!J50 -> 0 | D44: =IF(Register!B50="","",Register!B50) ->  | E44: =IF(Register!F50="","(blank line)",Register!F50) -> (blank line) | F44: =Register!C50 -> 00:00:00 | G44: =IF(Register!D50="",IF(Register!E50="","(empty description)",Register!E50),CONCATENATE(Register!D50," - ",Register!E50)) -> (empty description) | H44: Y | I44: =Register!H50 ->  | K44: =TEXT(Register!H50,"mmm-yyyy") ->  | L44: =YEAR(Register!H50) ->  | M44: =Register!I50 -> 0 | N44: =Register!J50 -> 0 | O44: Credit | P44: 0
A45: =YEAR(Register!B51) -> 1900 | B45: =TEXT(Register!B51,"mmmm - yy") -> January - 00 | C45: =Register!I51+Register!J51 -> 0 | D45: =IF(Register!B51="","",Register!B51) ->  | E45: =IF(Register!F51="","(blank line)",Register!F51) -> (blank line) | F45: =Register!C51 -> 00:00:00 | G45: =IF(Register!D51="",IF(Register!E51="","(empty description)",Register!E51),CONCATENATE(Register!D51," - ",Register!E51)) -> (empty description) | H45: Y | I45: =Register!H51 ->  | K45: =TEXT(Register!H51,"mmm-yyyy") ->  | L45: =YEAR(Register!H51) ->  | M45: =Register!I51 -> 0 | N45: =Register!J51 -> 0 | O45: Credit | P45: 0
A46: =YEAR(Register!B52) -> 1900 | B46: =TEXT(Register!B52,"mmmm - yy") -> January - 00 | C46: =Register!I52+Register!J52 -> 0 | D46: =IF(Register!B52="","",Register!B52) ->  | E46: =IF(Register!F52="","(blank line)",Register!F52) -> (blank line) | F46: =Register!C52 -> 00:00:00 | G46: =IF(Register!D52="",IF(Register!E52="","(empty description)",Register!E52),CONCATENATE(Register!D52," - ",Register!E52)) -> (empty description) | H46: Y | I46: =Register!H52 ->  | K46: =TEXT(Register!H52,"mmm-yyyy") ->  | L46: =YEAR(Register!H52) ->  | M46: =Register!I52 -> 0 | N46: =Register!J52 -> 0 | O46: Credit | P46: 0
A47: =YEAR(Register!B53) -> 1900 | B47: =TEXT(Register!B53,"mmmm - yy") -> January - 00 | C47: =Register!I53+Register!J53 -> 0 | D47: =IF(Register!B53="","",Register!B53) ->  | E47: =IF(Register!F53="","(blank line)",Register!F53) -> (blank line) | F47: =Register!C53 -> 00:00:00 | G47: =IF(Register!D53="",IF(Register!E53="","(empty description)",Register!E53),CONCATENATE(Register!D53," - ",Register!E53)) -> (empty description) | H47: Y | I47: =Register!H53 ->  | K47: =TEXT(Register!H53,"mmm-yyyy") ->  | L47: =YEAR(Register!H53) ->  | M47: =Register!I53 -> 0 | N47: =Register!J53 -> 0 | O47: Credit | P47: 0
A48: =YEAR(Register!B54) -> 1900 | B48: =TEXT(Register!B54,"mmmm - yy") -> January - 00 | C48: =Register!I54+Register!J54 -> 0 | D48: =IF(Register!B54="","",Register!B54) ->  | E48: =IF(Register!F54="","(blank line)",Register!F54) -> (blank line) | F48: =Register!C54 -> 00:00:00 | G48: =IF(Register!D54="",IF(Register!E54="","(empty description)",Register!E54),CONCATENATE(Register!D54," - ",Register!E54)) -> (empty description) | H48: Y | I48: =Register!H54 ->  | K48: =TEXT(Register!H54,"mmm-yyyy") ->  | L48: =YEAR(Register!H54) ->  | M48: =Register!I54 -> 0 | N48: =Register!J54 -> 0 | O48: Credit | P48: 0
A49: =YEAR(Register!B55) -> 1900 | B49: =TEXT(Register!B55,"mmmm - yy") -> January - 00 | C49: =Register!I55+Register!J55 -> 0 | D49: =IF(Register!B55="","",Register!B55) ->  | E49: =IF(Register!F55="","(blank line)",Register!F55) -> (blank line) | F49: =Register!C55 -> 00:00:00 | G49: =IF(Register!D55="",IF(Register!E55="","(empty description)",Register!E55),CONCATENATE(Register!D55," - ",Register!E55)) -> (empty description) | H49: Y | I49: =Register!H55 ->  | K49: =TEXT(Register!H55,"mmm-yyyy") ->  | L49: =YEAR(Register!H55) ->  | M49: =Register!I55 -> 0 | N49: =Register!J55 -> 0 | O49: Credit | P49: 0
A50: =YEAR(Register!B56) -> 1900 | B50: =TEXT(Register!B56,"mmmm - yy") -> January - 00 | C50: =Register!I56+Register!J56 -> 0 | D50: =IF(Register!B56="","",Register!B56) ->  | E50: =IF(Register!F56="","(blank line)",Register!F56) -> (blank line) | F50: =Register!C56 -> 00:00:00 | G50: =IF(Register!D56="",IF(Register!E56="","(empty description)",Register!E56),CONCATENATE(Register!D56," - ",Register!E56)) -> (empty description) | H50: Y | I50: =Register!H56 ->  | K50: =TEXT(Register!H56,"mmm-yyyy") ->  | L50: =YEAR(Register!H56) ->  | M50: =Register!I56 -> 0 | N50: =Register!J56 -> 0 | O50: Credit | P50: 0
A51: =YEAR(Register!B57) -> 1900 | B51: =TEXT(Register!B57,"mmmm - yy") -> January - 00 | C51: =Register!I57+Register!J57 -> 0 | D51: =IF(Register!B57="","",Register!B57) ->  | E51: =IF(Register!F57="","(blank line)",Register!F57) -> (blank line) | F51: =Register!C57 -> 00:00:00 | G51: =IF(Register!D57="",IF(Register!E57="","(empty description)",Register!E57),CONCATENATE(Register!D57," - ",Register!E57)) -> (empty description) | H51: Y | I51: =Register!H57 ->  | K51: =TEXT(Register!H57,"mmm-yyyy") ->  | L51: =YEAR(Register!H57) ->  | M51: =Register!I57 -> 0 | N51: =Register!J57 -> 0 | O51: Credit | P51: 0
A52: =YEAR(Register!B58) -> 1900 | B52: =TEXT(Register!B58,"mmmm - yy") -> January - 00 | C52: =Register!I58+Register!J58 -> 0 | D52: =IF(Register!B58="","",Register!B58) ->  | E52: =IF(Register!F58="","(blank line)",Register!F58) -> (blank line) | F52: =Register!C58 -> 00:00:00 | G52: =IF(Register!D58="",IF(Register!E58="","(empty description)",Register!E58),CONCATENATE(Register!D58," - ",Register!E58)) -> (empty description) | H52: Y | I52: =Register!H58 ->  | K52: =TEXT(Register!H58,"mmm-yyyy") ->  | L52: =YEAR(Register!H58) ->  | M52: =Register!I58 -> 0 | N52: =Register!J58 -> 0 | O52: Credit | P52: 0
A53: =YEAR(Register!B59) -> 1900 | B53: =TEXT(Register!B59,"mmmm - yy") -> January - 00 | C53: =Register!I59+Register!J59 -> 0 | D53: =IF(Register!B59="","",Register!B59) ->  | E53: =IF(Register!F59="","(blank line)",Register!F59) -> (blank line) | F53: =Register!C59 -> 00:00:00 | G53: =IF(Register!D59="",IF(Register!E59="","(empty description)",Register!E59),CONCATENATE(Register!D59," - ",Register!E59)) -> (empty description) | H53: Y | I53: =Register!H59 ->  | K53: =TEXT(Register!H59,"mmm-yyyy") ->  | L53: =YEAR(Register!H59) ->  | M53: =Register!I59 -> 0 | N53: =Register!J59 -> 0 | O53: Credit | P53: 0
A54: =YEAR(Register!B60) -> 1900 | B54: =TEXT(Register!B60,"mmmm - yy") -> January - 00 | C54: =Register!I60+Register!J60 -> 0 | D54: =IF(Register!B60="","",Register!B60) ->  | E54: =IF(Register!F60="","(blank line)",Register!F60) -> (blank line) | F54: =Register!C60 -> 00:00:00 | G54: =IF(Register!D60="",IF(Register!E60="","(empty description)",Register!E60),CONCATENATE(Register!D60," - ",Register!E60)) -> (empty description) | H54: Y | I54: =Register!H60 ->  | K54: =TEXT(Register!H60,"mmm-yyyy") ->  | L54: =YEAR(Register!H60) ->  | M54: =Register!I60 -> 0 | N54: =Register!J60 -> 0 | O54: Credit | P54: 0
A55: =YEAR(Register!B61) -> 1900 | B55: =TEXT(Register!B61,"mmmm - yy") -> January - 00 | C55: =Register!I61+Register!J61 -> 0 | D55: =IF(Register!B61="","",Register!B61) ->  | E55: =IF(Register!F61="","(blank line)",Register!F61) -> (blank line) | F55: =Register!C61 -> 00:00:00 | G55: =IF(Register!D61="",IF(Register!E61="","(empty description)",Register!E61),CONCATENATE(Register!D61," - ",Register!E61)) -> (empty description) | H55: Y | I55: =Register!H61 ->  | K55: =TEXT(Register!H61,"mmm-yyyy") ->  | L55: =YEAR(Register!H61) ->  | M55: =Register!I61 -> 0 | N55: =Register!J61 -> 0 | O55: Credit | P55: 0
A56: =YEAR(Register!B62) -> 1900 | B56: =TEXT(Register!B62,"mmmm - yy") -> January - 00 | C56: =Register!I62+Register!J62 -> 0 | D56: =IF(Register!B62="","",Register!B62) ->  | E56: =IF(Register!F62="","(blank line)",Register!F62) -> (blank line) | F56: =Register!C62 -> 00:00:00 | G56: =IF(Register!D62="",IF(Register!E62="","(empty description)",Register!E62),CONCATENATE(Register!D62," - ",Register!E62)) -> (empty description) | H56: Y | I56: =Register!H62 ->  | K56: =TEXT(Register!H62,"mmm-yyyy") ->  | L56: =YEAR(Register!H62) ->  | M56: =Register!I62 -> 0 | N56: =Register!J62 -> 0 | O56: Credit | P56: 0
A57: =YEAR(Register!B63) -> 1900 | B57: =TEXT(Register!B63,"mmmm - yy") -> January - 00 | C57: =Register!I63+Register!J63 -> 0 | D57: =IF(Register!B63="","",Register!B63) ->  | E57: =IF(Register!F63="","(blank line)",Register!F63) -> (blank line) | F57: =Register!C63 -> 00:00:00 | G57: =IF(Register!D63="",IF(Register!E63="","(empty description)",Register!E63),CONCATENATE(Register!D63," - ",Register!E63)) -> (empty description) | H57: Y | I57: =Register!H63 ->  | K57: =TEXT(Register!H63,"mmm-yyyy") ->  | L57: =YEAR(Register!H63) ->  | M57: =Register!I63 -> 0 | N57: =Register!J63 -> 0 | O57: Credit | P57: 0
A58: =YEAR(Register!B64) -> 1900 | B58: =TEXT(Register!B64,"mmmm - yy") -> January - 00 | C58: =Register!I64+Register!J64 -> 0 | D58: =IF(Register!B64="","",Register!B64) ->  | E58: =IF(Register!F64="","(blank line)",Register!F64) -> (blank line) | F58: =Register!C64 -> 00:00:00 | G58: =IF(Register!D64="",IF(Register!E64="","(empty description)",Register!E64),CONCATENATE(Register!D64," - ",Register!E64)) -> (empty description) | H58: Y | I58: =Register!H64 ->  | K58: =TEXT(Register!H64,"mmm-yyyy") ->  | L58: =YEAR(Register!H64) ->  | M58: =Register!I64 -> 0 | N58: =Register!J64 -> 0 | O58: Credit | P58: 0
A59: =YEAR(Register!B65) -> 1900 | B59: =TEXT(Register!B65,"mmmm - yy") -> January - 00 | C59: =Register!I65+Register!J65 -> 0 | D59: =IF(Register!B65="","",Register!B65) ->  | E59: =IF(Register!F65="","(blank line)",Register!F65) -> (blank line) | F59: =Register!C65 -> 00:00:00 | G59: =IF(Register!D65="",IF(Register!E65="","(empty description)",Register!E65),CONCATENATE(Register!D65," - ",Register!E65)) -> (empty description) | H59: Y | I59: =Register!H65 ->  | K59: =TEXT(Register!H65,"mmm-yyyy") ->  | L59: =YEAR(Register!H65) ->  | M59: =Register!I65 -> 0 | N59: =Register!J65 -> 0 | O59: Credit | P59: 0
A60: =YEAR(Register!B66) -> 1900 | B60: =TEXT(Register!B66,"mmmm - yy") -> January - 00 | C60: =Register!I66+Register!J66 -> 0 | D60: =IF(Register!B66="","",Register!B66) ->  | E60: =IF(Register!F66="","(blank line)",Register!F66) -> (blank line) | F60: =Register!C66 -> 00:00:00 | G60: =IF(Register!D66="",IF(Register!E66="","(empty description)",Register!E66),CONCATENATE(Register!D66," - ",Register!E66)) -> (empty description) | H60: Y | I60: =Register!H66 ->  | K60: =TEXT(Register!H66,"mmm-yyyy") ->  | L60: =YEAR(Register!H66) ->  | M60: =Register!I66 -> 0 | N60: =Register!J66 -> 0 | O60: Credit | P60: 0
A61: =YEAR(Register!B67) -> 1900 | B61: =TEXT(Register!B67,"mmmm - yy") -> January - 00 | C61: =Register!I67+Register!J67 -> 0 | D61: =IF(Register!B67="","",Register!B67) ->  | E61: =IF(Register!F67="","(blank line)",Register!F67) -> (blank line) | F61: =Register!C67 -> 00:00:00 | G61: =IF(Register!D67="",IF(Register!E67="","(empty description)",Register!E67),CONCATENATE(Register!D67," - ",Register!E67)) -> (empty description) | H61: Y | I61: =Register!H67 ->  | K61: =TEXT(Register!H67,"mmm-yyyy") ->  | L61: =YEAR(Register!H67) ->  | M61: =Register!I67 -> 0 | N61: =Register!J67 -> 0 | O61: Credit | P61: 0
A62: =YEAR(Register!B68) -> 1900 | B62: =TEXT(Register!B68,"mmmm - yy") -> January - 00 | C62: =Register!I68+Register!J68 -> 0 | D62: =IF(Register!B68="","",Register!B68) ->  | E62: =IF(Register!F68="","(blank line)",Register!F68) -> (blank line) | F62: =Register!C68 -> 00:00:00 | G62: =IF(Register!D68="",IF(Register!E68="","(empty description)",Register!E68),CONCATENATE(Register!D68," - ",Register!E68)) -> (empty description) | H62: Y | I62: =Register!H68 ->  | K62: =TEXT(Register!H68,"mmm-yyyy") ->  | L62: =YEAR(Register!H68) ->  | M62: =Register!I68 -> 0 | N62: =Register!J68 -> 0 | O62: Credit | P62: 0
A63: =YEAR(Register!B69) -> 1900 | B63: =TEXT(Register!B69,"mmmm - yy") -> January - 00 | C63: =Register!I69+Register!J69 -> 0 | D63: =IF(Register!B69="","",Register!B69) ->  | E63: =IF(Register!F69="","(blank line)",Register!F69) -> (blank line) | F63: =Register!C69 -> 00:00:00 | G63: =IF(Register!D69="",IF(Register!E69="","(empty description)",Register!E69),CONCATENATE(Register!D69," - ",Register!E69)) -> (empty description) | H63: Y | I63: =Register!H69 ->  | K63: =TEXT(Register!H69,"mmm-yyyy") ->  | L63: =YEAR(Register!H69) ->  | M63: =Register!I69 -> 0 | N63: =Register!J69 -> 0 | O63: Credit | P63: 0
A64: =YEAR(Register!B70) -> 1900 | B64: =TEXT(Register!B70,"mmmm - yy") -> January - 00 | C64: =Register!I70+Register!J70 -> 0 | D64: =IF(Register!B70="","",Register!B70) ->  | E64: =IF(Register!F70="","(blank line)",Register!F70) -> (blank line) | F64: =Register!C70 -> 00:00:00 | G64: =IF(Register!D70="",IF(Register!E70="","(empty description)",Register!E70),CONCATENATE(Register!D70," - ",Register!E70)) -> (empty description) | H64: Y | I64: =Register!H70 ->  | K64: =TEXT(Register!H70,"mmm-yyyy") ->  | L64: =YEAR(Register!H70) ->  | M64: =Register!I70 -> 0 | N64: =Register!J70 -> 0 | O64: Credit | P64: 0
A65: =YEAR(Register!B71) -> 1900 | B65: =TEXT(Register!B71,"mmmm - yy") -> January - 00 | C65: =Register!I71+Register!J71 -> 0 | D65: =IF(Register!B71="","",Register!B71) ->  | E65: =IF(Register!F71="","(blank line)",Register!F71) -> (blank line) | F65: =Register!C71 -> 00:00:00 | G65: =IF(Register!D71="",IF(Register!E71="","(empty description)",Register!E71),CONCATENATE(Register!D71," - ",Register!E71)) -> (empty description) | H65: Y | I65: =Register!H71 ->  | K65: =TEXT(Register!H71,"mmm-yyyy") ->  | L65: =YEAR(Register!H71) ->  | M65: =Register!I71 -> 0 | N65: =Register!J71 -> 0 | O65: Credit | P65: 0
A66: =YEAR(Register!B72) -> 1900 | B66: =TEXT(Register!B72,"mmmm - yy") -> January - 00 | C66: =Register!I72+Register!J72 -> 0 | D66: =IF(Register!B72="","",Register!B72) ->  | E66: =IF(Register!F72="","(blank line)",Register!F72) -> (blank line) | F66: =Register!C72 -> 00:00:00 | G66: =IF(Register!D72="",IF(Register!E72="","(empty description)",Register!E72),CONCATENATE(Register!D72," - ",Register!E72)) -> (empty description) | H66: Y | I66: =Register!H72 ->  | K66: =TEXT(Register!H72,"mmm-yyyy") ->  | L66: =YEAR(Register!H72) ->  | M66: =Register!I72 -> 0 | N66: =Register!J72 -> 0 | O66: Credit | P66: 0
A67: =YEAR(Register!B73) -> 1900 | B67: =TEXT(Register!B73,"mmmm - yy") -> January - 00 | C67: =Register!I73+Register!J73 -> 0 | D67: =IF(Register!B73="","",Register!B73) ->  | E67: =IF(Register!F73="","(blank line)",Register!F73) -> (blank line) | F67: =Register!C73 -> 00:00:00 | G67: =IF(Register!D73="",IF(Register!E73="","(empty description)",Register!E73),CONCATENATE(Register!D73," - ",Register!E73)) -> (empty description) | H67: Y | I67: =Register!H73 ->  | K67: =TEXT(Register!H73,"mmm-yyyy") ->  | L67: =YEAR(Register!H73) ->  | M67: =Register!I73 -> 0 | N67: =Register!J73 -> 0 | O67: Credit | P67: 0
A68: =YEAR(Register!B74) -> 1900 | B68: =TEXT(Register!B74,"mmmm - yy") -> January - 00 | C68: =Register!I74+Register!J74 -> 0 | D68: =IF(Register!B74="","",Register!B74) ->  | E68: =IF(Register!F74="","(blank line)",Register!F74) -> (blank line) | F68: =Register!C74 -> 00:00:00 | G68: =IF(Register!D74="",IF(Register!E74="","(empty description)",Register!E74),CONCATENATE(Register!D74," - ",Register!E74)) -> (empty description) | H68: Y | I68: =Register!H74 ->  | K68: =TEXT(Register!H74,"mmm-yyyy") ->  | L68: =YEAR(Register!H74) ->  | M68: =Register!I74 -> 0 | N68: =Register!J74 -> 0 | O68: Credit | P68: 0
A69: =YEAR(Register!B75) -> 1900 | B69: =TEXT(Register!B75,"mmmm - yy") -> January - 00 | C69: =Register!I75+Register!J75 -> 0 | D69: =IF(Register!B75="","",Register!B75) ->  | E69: =IF(Register!F75="","(blank line)",Register!F75) -> (blank line) | F69: =Register!C75 -> 00:00:00 | G69: =IF(Register!D75="",IF(Register!E75="","(empty description)",Register!E75),CONCATENATE(Register!D75," - ",Register!E75)) -> (empty description) | H69: =IF(C69=0,"Y","N") -> Y | I69: =Register!H75 ->  | J69: =L69*100+MONTH(I69) ->  | K69: =TEXT(Register!H75,"mmm-yyyy") ->  | L69: =YEAR(Register!H75) ->  | M69: =Register!I75 -> 0 | N69: =Register!J75 -> 0 | O69: =IF(M69<0,"Debit","Credit") -> Credit | P69: =SUMIF(J$4:J$150,"<"&J69,C$4:C$150) -> 0
A70: =YEAR(Register!B76) -> 1900 | B70: =TEXT(Register!B76,"mmmm - yy") -> January - 00 | C70: =Register!I76+Register!J76 -> 0 | D70: =IF(Register!B76="","",Register!B76) ->  | E70: =IF(Register!F76="","(blank line)",Register!F76) -> (blank line) | F70: =Register!C76 -> 00:00:00 | G70: =IF(Register!D76="",IF(Register!E76="","(empty description)",Register!E76),CONCATENATE(Register!D76," - ",Register!E76)) -> (empty description) | H70: Y | I70: =Register!H76 ->  | K70: =TEXT(Register!H76,"mmm-yyyy") ->  | L70: =YEAR(Register!H76) ->  | M70: =Register!I76 -> 0 | N70: =Register!J76 -> 0 | O70: Credit | P70: 0
A71: =YEAR(Register!B77) -> 1900 | B71: =TEXT(Register!B77,"mmmm - yy") -> January - 00 | C71: =Register!I77+Register!J77 -> 0 | D71: =IF(Register!B77="","",Register!B77) ->  | E71: =IF(Register!F77="","(blank line)",Register!F77) -> (blank line) | F71: =Register!C77 -> 00:00:00 | G71: =IF(Register!D77="",IF(Register!E77="","(empty description)",Register!E77),CONCATENATE(Register!D77," - ",Register!E77)) -> (empty description) | H71: Y | I71: =Register!H77 ->  | K71: =TEXT(Register!H77,"mmm-yyyy") ->  | L71: =YEAR(Register!H77) ->  | M71: =Register!I77 -> 0 | N71: =Register!J77 -> 0 | O71: Credit | P71: 0
A72: =YEAR(Register!B78) -> 1900 | B72: =TEXT(Register!B78,"mmmm - yy") -> January - 00 | C72: =Register!I78+Register!J78 -> 0 | D72: =IF(Register!B78="","",Register!B78) ->  | E72: =IF(Register!F78="","(blank line)",Register!F78) -> (blank line) | F72: =Register!C78 -> 00:00:00 | G72: =IF(Register!D78="",IF(Register!E78="","(empty description)",Register!E78),CONCATENATE(Register!D78," - ",Register!E78)) -> (empty description) | H72: Y | I72: =Register!H78 ->  | K72: =TEXT(Register!H78,"mmm-yyyy") ->  | L72: =YEAR(Register!H78) ->  | M72: =Register!I78 -> 0 | N72: =Register!J78 -> 0 | O72: Credit | P72: 0
A73: =YEAR(Register!B79) -> 1900 | B73: =TEXT(Register!B79,"mmmm - yy") -> January - 00 | C73: =Register!I79+Register!J79 -> 0 | D73: =IF(Register!B79="","",Register!B79) ->  | E73: =IF(Register!F79="","(blank line)",Register!F79) -> (blank line) | F73: =Register!C79 -> 00:00:00 | G73: =IF(Register!D79="",IF(Register!E79="","(empty description)",Register!E79),CONCATENATE(Register!D79," - ",Register!E79)) -> (empty description) | H73: Y | I73: =Register!H79 ->  | K73: =TEXT(Register!H79,"mmm-yyyy") ->  | L73: =YEAR(Register!H79) ->  | M73: =Register!I79 -> 0 | N73: =Register!J79 -> 0 | O73: Credit | P73: 0
A74: =YEAR(Register!B80) -> 1900 | B74: =TEXT(Register!B80,"mmmm - yy") -> January - 00 | C74: =Register!I80+Register!J80 -> 0 | D74: =IF(Register!B80="","",Register!B80) ->  | E74: =IF(Register!F80="","(blank line)",Register!F80) -> (blank line) | F74: =Register!C80 -> 00:00:00 | G74: =IF(Register!D80="",IF(Register!E80="","(empty description)",Register!E80),CONCATENATE(Register!D80," - ",Register!E80)) -> (empty description) | H74: Y | I74: =Register!H80 ->  | K74: =TEXT(Register!H80,"mmm-yyyy") ->  | L74: =YEAR(Register!H80) ->  | M74: =Register!I80 -> 0 | N74: =Register!J80 -> 0 | O74: Credit | P74: 0
A75: =YEAR(Register!B81) -> 1900 | B75: =TEXT(Register!B81,"mmmm - yy") -> January - 00 | C75: =Register!I81+Register!J81 -> 0 | D75: =IF(Register!B81="","",Register!B81) ->  | E75: =IF(Register!F81="","(blank line)",Register!F81) -> (blank line) | F75: =Register!C81 -> 00:00:00 | G75: =IF(Register!D81="",IF(Register!E81="","(empty description)",Register!E81),CONCATENATE(Register!D81," - ",Register!E81)) -> (empty description) | H75: Y | I75: =Register!H81 ->  | K75: =TEXT(Register!H81,"mmm-yyyy") ->  | L75: =YEAR(Register!H81) ->  | M75: =Register!I81 -> 0 | N75: =Register!J81 -> 0 | O75: Credit | P75: 0
A76: =YEAR(Register!B82) -> 1900 | B76: =TEXT(Register!B82,"mmmm - yy") -> January - 00 | C76: =Register!I82+Register!J82 -> 0 | D76: =IF(Register!B82="","",Register!B82) ->  | E76: =IF(Register!F82="","(blank line)",Register!F82) -> (blank line) | F76: =Register!C82 -> 00:00:00 | G76: =IF(Register!D82="",IF(Register!E82="","(empty description)",Register!E82),CONCATENATE(Register!D82," - ",Register!E82)) -> (empty description) | H76: Y | I76: =Register!H82 ->  | K76: =TEXT(Register!H82,"mmm-yyyy") ->  | L76: =YEAR(Register!H82) ->  | M76: =Register!I82 -> 0 | N76: =Register!J82 -> 0 | O76: Credit | P76: 0
A77: =YEAR(Register!B83) -> 1900 | B77: =TEXT(Register!B83,"mmmm - yy") -> January - 00 | C77: =Register!I83+Register!J83 -> 0 | D77: =IF(Register!B83="","",Register!B83) ->  | E77: =IF(Register!F83="","(blank line)",Register!F83) -> (blank line) | F77: =Register!C83 -> 00:00:00 | G77: =IF(Register!D83="",IF(Register!E83="","(empty description)",Register!E83),CONCATENATE(Register!D83," - ",Register!E83)) -> (empty description) | H77: Y | I77: =Register!H83 ->  | K77: =TEXT(Register!H83,"mmm-yyyy") ->  | L77: =YEAR(Register!H83) ->  | M77: =Register!I83 -> 0 | N77: =Register!J83 -> 0 | O77: Credit | P77: 0
A78: =YEAR(Register!B84) -> 1900 | B78: =TEXT(Register!B84,"mmmm - yy") -> January - 00 | C78: =Register!I84+Register!J84 -> 0 | D78: =IF(Register!B84="","",Register!B84) ->  | E78: =IF(Register!F84="","(blank line)",Register!F84) -> (blank line) | F78: =Register!C84 -> 00:00:00 | G78: =IF(Register!D84="",IF(Register!E84="","(empty description)",Register!E84),CONCATENATE(Register!D84," - ",Register!E84)) -> (empty description) | H78: Y | I78: =Register!H84 ->  | K78: =TEXT(Register!H84,"mmm-yyyy") ->  | L78: =YEAR(Register!H84) ->  | M78: =Register!I84 -> 0 | N78: =Register!J84 -> 0 | O78: Credit | P78: 0
A79: =YEAR(Register!B85) -> 1900 | B79: =TEXT(Register!B85,"mmmm - yy") -> January - 00 | C79: =Register!I85+Register!J85 -> 0 | D79: =IF(Register!B85="","",Register!B85) ->  | E79: =IF(Register!F85="","(blank line)",Register!F85) -> (blank line) | F79: =Register!C85 -> 00:00:00 | G79: =IF(Register!D85="",IF(Register!E85="","(empty description)",Register!E85),CONCATENATE(Register!D85," - ",Register!E85)) -> (empty description) | H79: Y | I79: =Register!H85 ->  | K79: =TEXT(Register!H85,"mmm-yyyy") ->  | L79: =YEAR(Register!H85) ->  | M79: =Register!I85 -> 0 | N79: =Register!J85 -> 0 | O79: Credit | P79: 0
A80: =YEAR(Register!B86) -> 1900 | B80: =TEXT(Register!B86,"mmmm - yy") -> January - 00 | C80: =Register!I86+Register!J86 -> 0 | D80: =IF(Register!B86="","",Register!B86) ->  | E80: =IF(Register!F86="","(blank line)",Register!F86) -> (blank line) | F80: =Register!C86 -> 00:00:00 | G80: =IF(Register!D86="",IF(Register!E86="","(empty description)",Register!E86),CONCATENATE(Register!D86," - ",Register!E86)) -> (empty description) | H80: Y | I80: =Register!H86 ->  | K80: =TEXT(Register!H86,"mmm-yyyy") ->  | L80: =YEAR(Register!H86) ->  | M80: =Register!I86 -> 0 | N80: =Register!J86 -> 0 | O80: Credit | P80: 0
A81: =YEAR(Register!B87) -> 1900 | B81: =TEXT(Register!B87,"mmmm - yy") -> January - 00 | C81: =Register!I87+Register!J87 -> 0 | D81: =IF(Register!B87="","",Register!B87) ->  | E81: =IF(Register!F87="","(blank line)",Register!F87) -> (blank line) | F81: =Register!C87 -> 00:00:00 | G81: =IF(Register!D87="",IF(Register!E87="","(empty description)",Register!E87),CONCATENATE(Register!D87," - ",Register!E87)) -> (empty description) | H81: Y | I81: =Register!H87 ->  | K81: =TEXT(Register!H87,"mmm-yyyy") ->  | L81: =YEAR(Register!H87) ->  | M81: =Register!I87 -> 0 | N81: =Register!J87 -> 0 | O81: Credit | P81: 0
A82: =YEAR(Register!B88) -> 1900 | B82: =TEXT(Register!B88,"mmmm - yy") -> January - 00 | C82: =Register!I88+Register!J88 -> 0 | D82: =IF(Register!B88="","",Register!B88) ->  | E82: =IF(Register!F88="","(blank line)",Register!F88) -> (blank line) | F82: =Register!C88 -> 00:00:00 | G82: =IF(Register!D88="",IF(Register!E88="","(empty description)",Register!E88),CONCATENATE(Register!D88," - ",Register!E88)) -> (empty description) | H82: Y | I82: =Register!H88 ->  | K82: =TEXT(Register!H88,"mmm-yyyy") ->  | L82: =YEAR(Register!H88) ->  | M82: =Register!I88 -> 0 | N82: =Register!J88 -> 0 | O82: Credit | P82: 0
A83: =YEAR(Register!B89) -> 1900 | B83: =TEXT(Register!B89,"mmmm - yy") -> January - 00 | C83: =Register!I89+Register!J89 -> 0 | D83: =IF(Register!B89="","",Register!B89) ->  | E83: =IF(Register!F89="","(blank line)",Register!F89) -> (blank line) | F83: =Register!C89 -> 00:00:00 | G83: =IF(Register!D89="",IF(Register!E89="","(empty description)",Register!E89),CONCATENATE(Register!D89," - ",Register!E89)) -> (empty description) | H83: Y | I83: =Register!H89 ->  | K83: =TEXT(Register!H89,"mmm-yyyy") ->  | L83: =YEAR(Register!H89) ->  | M83: =Register!I89 -> 0 | N83: =Register!J89 -> 0 | O83: Credit | P83: 0
A84: =YEAR(Register!B90) -> 1900 | B84: =TEXT(Register!B90,"mmmm - yy") -> January - 00 | C84: =Register!I90+Register!J90 -> 0 | D84: =IF(Register!B90="","",Register!B90) ->  | E84: =IF(Register!F90="","(blank line)",Register!F90) -> (blank line) | F84: =Register!C90 -> 00:00:00 | G84: =IF(Register!D90="",IF(Register!E90="","(empty description)",Register!E90),CONCATENATE(Register!D90," - ",Register!E90)) -> (empty description) | H84: Y | I84: =Register!H90 ->  | K84: =TEXT(Register!H90,"mmm-yyyy") ->  | L84: =YEAR(Register!H90) ->  | M84: =Register!I90 -> 0 | N84: =Register!J90 -> 0 | O84: Credit | P84: 0
A85: =YEAR(Register!B91) -> 1900 | B85: =TEXT(Register!B91,"mmmm - yy") -> January - 00 | C85: =Register!I91+Register!J91 -> 0 | D85: =IF(Register!B91="","",Register!B91) ->  | E85: =IF(Register!F91="","(blank line)",Register!F91) -> (blank line) | F85: =Register!C91 -> 00:00:00 | G85: =IF(Register!D91="",IF(Register!E91="","(empty description)",Register!E91),CONCATENATE(Register!D91," - ",Register!E91)) -> (empty description) | H85: Y | I85: =Register!H91 ->  | K85: =TEXT(Register!H91,"mmm-yyyy") ->  | L85: =YEAR(Register!H91) ->  | M85: =Register!I91 -> 0 | N85: =Register!J91 -> 0 | O85: Credit | P85: 0
A86: =YEAR(Register!B92) -> 1900 | B86: =TEXT(Register!B92,"mmmm - yy") -> January - 00 | C86: =Register!I92+Register!J92 -> 0 | D86: =IF(Register!B92="","",Register!B92) ->  | E86: =IF(Register!F92="","(blank line)",Register!F92) -> (blank line) | F86: =Register!C92 -> 00:00:00 | G86: =IF(Register!D92="",IF(Register!E92="","(empty description)",Register!E92),CONCATENATE(Register!D92," - ",Register!E92)) -> (empty description) | H86: Y | I86: =Register!H92 ->  | K86: =TEXT(Register!H92,"mmm-yyyy") ->  | L86: =YEAR(Register!H92) ->  | M86: =Register!I92 -> 0 | N86: =Register!J92 -> 0 | O86: Credit | P86: 0
A87: =YEAR(Register!B93) -> 1900 | B87: =TEXT(Register!B93,"mmmm - yy") -> January - 00 | C87: =Register!I93+Register!J93 -> 0 | D87: =IF(Register!B93="","",Register!B93) ->  | E87: =IF(Register!F93="","(blank line)",Register!F93) -> (blank line) | F87: =Register!C93 -> 00:00:00 | G87: =IF(Register!D93="",IF(Register!E93="","(empty description)",Register!E93),CONCATENATE(Register!D93," - ",Register!E93)) -> (empty description) | H87: Y | I87: =Register!H93 ->  | K87: =TEXT(Register!H93,"mmm-yyyy") ->  | L87: =YEAR(Register!H93) ->  | M87: =Register!I93 -> 0 | N87: =Register!J93 -> 0 | O87: Credit | P87: 0
A88: =YEAR(Register!B94) -> 1900 | B88: =TEXT(Register!B94,"mmmm - yy") -> January - 00 | C88: =Register!I94+Register!J94 -> 0 | D88: =IF(Register!B94="","",Register!B94) ->  | E88: =IF(Register!F94="","(blank line)",Register!F94) -> (blank line) | F88: =Register!C94 -> 00:00:00 | G88: =IF(Register!D94="",IF(Register!E94="","(empty description)",Register!E94),CONCATENATE(Register!D94," - ",Register!E94)) -> (empty description) | H88: Y | I88: =Register!H94 ->  | K88: =TEXT(Register!H94,"mmm-yyyy") ->  | L88: =YEAR(Register!H94) ->  | M88: =Register!I94 -> 0 | N88: =Register!J94 -> 0 | O88: Credit | P88: 0
A89: =YEAR(Register!B95) -> 1900 | B89: =TEXT(Register!B95,"mmmm - yy") -> January - 00 | C89: =Register!I95+Register!J95 -> 0 | D89: =IF(Register!B95="","",Register!B95) ->  | E89: =IF(Register!F95="","(blank line)",Register!F95) -> (blank line) | F89: =Register!C95 -> 00:00:00 | G89: =IF(Register!D95="",IF(Register!E95="","(empty description)",Register!E95),CONCATENATE(Register!D95," - ",Register!E95)) -> (empty description) | H89: Y | I89: =Register!H95 ->  | K89: =TEXT(Register!H95,"mmm-yyyy") ->  | L89: =YEAR(Register!H95) ->  | M89: =Register!I95 -> 0 | N89: =Register!J95 -> 0 | O89: Credit | P89: 0
A90: =YEAR(Register!B96) -> 1900 | B90: =TEXT(Register!B96,"mmmm - yy") -> January - 00 | C90: =Register!I96+Register!J96 -> 0 | D90: =IF(Register!B96="","",Register!B96) ->  | E90: =IF(Register!F96="","(blank line)",Register!F96) -> (blank line) | F90: =Register!C96 -> 00:00:00 | G90: =IF(Register!D96="",IF(Register!E96="","(empty description)",Register!E96),CONCATENATE(Register!D96," - ",Register!E96)) -> (empty description) | H90: Y | I90: =Register!H96 ->  | K90: =TEXT(Register!H96,"mmm-yyyy") ->  | L90: =YEAR(Register!H96) ->  | M90: =Register!I96 -> 0 | N90: =Register!J96 -> 0 | O90: Credit | P90: 0
A91: =YEAR(Register!B97) -> 1900 | B91: =TEXT(Register!B97,"mmmm - yy") -> January - 00 | C91: =Register!I97+Register!J97 -> 0 | D91: =IF(Register!B97="","",Register!B97) ->  | E91: =IF(Register!F97="","(blank line)",Register!F97) -> (blank line) | F91: =Register!C97 -> 00:00:00 | G91: =IF(Register!D97="",IF(Register!E97="","(empty description)",Register!E97),CONCATENATE(Register!D97," - ",Register!E97)) -> (empty description) | H91: Y | I91: =Register!H97 ->  | K91: =TEXT(Register!H97,"mmm-yyyy") ->  | L91: =YEAR(Register!H97) ->  | M91: =Register!I97 -> 0 | N91: =Register!J97 -> 0 | O91: Credit | P91: 0
A92: =YEAR(Register!B98) -> 1900 | B92: =TEXT(Register!B98,"mmmm - yy") -> January - 00 | C92: =Register!I98+Register!J98 -> 0 | D92: =IF(Register!B98="","",Register!B98) ->  | E92: =IF(Register!F98="","(blank line)",Register!F98) -> (blank line) | F92: =Register!C98 -> 00:00:00 | G92: =IF(Register!D98="",IF(Register!E98="","(empty description)",Register!E98),CONCATENATE(Register!D98," - ",Register!E98)) -> (empty description) | H92: Y | I92: =Register!H98 ->  | K92: =TEXT(Register!H98,"mmm-yyyy") ->  | L92: =YEAR(Register!H98) ->  | M92: =Register!I98 -> 0 | N92: =Register!J98 -> 0 | O92: Credit | P92: 0
A93: =YEAR(Register!B99) -> 1900 | B93: =TEXT(Register!B99,"mmmm - yy") -> January - 00 | C93: =Register!I99+Register!J99 -> 0 | D93: =IF(Register!B99="","",Register!B99) ->  | E93: =IF(Register!F99="","(blank line)",Register!F99) -> (blank line) | F93: =Register!C99 -> 00:00:00 | G93: =IF(Register!D99="",IF(Register!E99="","(empty description)",Register!E99),CONCATENATE(Register!D99," - ",Register!E99)) -> (empty description) | H93: Y | I93: =Register!H99 ->  | K93: =TEXT(Register!H99,"mmm-yyyy") ->  | L93: =YEAR(Register!H99) ->  | M93: =Register!I99 -> 0 | N93: =Register!J99 -> 0 | O93: Credit | P93: 0
A94: =YEAR(Register!B100) -> 1900 | B94: =TEXT(Register!B100,"mmmm - yy") -> January - 00 | C94: =Register!I100+Register!J100 -> 0 | D94: =IF(Register!B100="","",Register!B100) ->  | E94: =IF(Register!F100="","(blank line)",Register!F100) -> (blank line) | F94: =Register!C100 -> 00:00:00 | G94: =IF(Register!D100="",IF(Register!E100="","(empty description)",Register!E100),CONCATENATE(Register!D100," - ",Register!E100)) -> (empty description) | H94: Y | I94: =Register!H100 ->  | K94: =TEXT(Register!H100,"mmm-yyyy") ->  | L94: =YEAR(Register!H100) ->  | M94: =Register!I100 -> 0 | N94: =Register!J100 -> 0 | O94: Credit | P94: 0
A95: =YEAR(Register!B101) -> 1900 | B95: =TEXT(Register!B101,"mmmm - yy") -> January - 00 | C95: =Register!I101+Register!J101 -> 0 | D95: =IF(Register!B101="","",Register!B101) ->  | E95: =IF(Register!F101="","(blank line)",Register!F101) -> (blank line) | F95: =Register!C101 -> 00:00:00 | G95: =IF(Register!D101="",IF(Register!E101="","(empty description)",Register!E101),CONCATENATE(Register!D101," - ",Register!E101)) -> (empty description) | H95: Y | I95: =Register!H101 ->  | K95: =TEXT(Register!H101,"mmm-yyyy") ->  | L95: =YEAR(Register!H101) ->  | M95: =Register!I101 -> 0 | N95: =Register!J101 -> 0 | O95: Credit | P95: 0
A96: =YEAR(Register!B102) -> 1900 | B96: =TEXT(Register!B102,"mmmm - yy") -> January - 00 | C96: =Register!I102+Register!J102 -> 0 | D96: =IF(Register!B102="","",Register!B102) ->  | E96: =IF(Register!F102="","(blank line)",Register!F102) -> (blank line) | F96: =Register!C102 -> 00:00:00 | G96: =IF(Register!D102="",IF(Register!E102="","(empty description)",Register!E102),CONCATENATE(Register!D102," - ",Register!E102)) -> (empty description) | H96: Y | I96: =Register!H102 ->  | K96: =TEXT(Register!H102,"mmm-yyyy") ->  | L96: =YEAR(Register!H102) ->  | M96: =Register!I102 -> 0 | N96: =Register!J102 -> 0 | O96: Credit | P96: 0
A97: =YEAR(Register!B103) -> 1900 | B97: =TEXT(Register!B103,"mmmm - yy") -> January - 00 | C97: =Register!I103+Register!J103 -> 0 | D97: =IF(Register!B103="","",Register!B103) ->  | E97: =IF(Register!F103="","(blank line)",Register!F103) -> (blank line) | F97: =Register!C103 -> 00:00:00 | G97: =IF(Register!D103="",IF(Register!E103="","(empty description)",Register!E103),CONCATENATE(Register!D103," - ",Register!E103)) -> (empty description) | H97: Y | I97: =Register!H103 ->  | K97: =TEXT(Register!H103,"mmm-yyyy") ->  | L97: =YEAR(Register!H103) ->  | M97: =Register!I103 -> 0 | N97: =Register!J103 -> 0 | O97: Credit | P97: 0
A98: =YEAR(Register!B104) -> 1900 | B98: =TEXT(Register!B104,"mmmm - yy") -> January - 00 | C98: =Register!I104+Register!J104 -> 0 | D98: =IF(Register!B104="","",Register!B104) ->  | E98: =IF(Register!F104="","(blank line)",Register!F104) -> (blank line) | F98: =Register!C104 -> 00:00:00 | G98: =IF(Register!D104="",IF(Register!E104="","(empty description)",Register!E104),CONCATENATE(Register!D104," - ",Register!E104)) -> (empty description) | H98: Y | I98: =Register!H104 ->  | K98: =TEXT(Register!H104,"mmm-yyyy") ->  | L98: =YEAR(Register!H104) ->  | M98: =Register!I104 -> 0 | N98: =Register!J104 -> 0 | O98: Credit | P98: 0
A99: =YEAR(Register!B105) -> 1900 | B99: =TEXT(Register!B105,"mmmm - yy") -> January - 00 | C99: =Register!I105+Register!J105 -> 0 | D99: =IF(Register!B105="","",Register!B105) ->  | E99: =IF(Register!F105="","(blank line)",Register!F105) -> (blank line) | F99: =Register!C105 -> 00:00:00 | G99: =IF(Register!D105="",IF(Register!E105="","(empty description)",Register!E105),CONCATENATE(Register!D105," - ",Register!E105)) -> (empty description) | H99: Y | I99: =Register!H105 ->  | K99: =TEXT(Register!H105,"mmm-yyyy") ->  | L99: =YEAR(Register!H105) ->  | M99: =Register!I105 -> 0 | N99: =Register!J105 -> 0 | O99: Credit | P99: 0
A100: =YEAR(Register!B106) -> 1900 | B100: =TEXT(Register!B106,"mmmm - yy") -> January - 00 | C100: =Register!I106+Register!J106 -> 0 | D100: =IF(Register!B106="","",Register!B106) ->  | E100: =IF(Register!F106="","(blank line)",Register!F106) -> (blank line) | F100: =Register!C106 -> 00:00:00 | G100: =IF(Register!D106="",IF(Register!E106="","(empty description)",Register!E106),CONCATENATE(Register!D106," - ",Register!E106)) -> (empty description) | H100: Y | I100: =Register!H106 ->  | K100: =TEXT(Register!H106,"mmm-yyyy") ->  | L100: =YEAR(Register!H106) ->  | M100: =Register!I106 -> 0 | N100: =Register!J106 -> 0 | O100: Credit | P100: 0
A101: =YEAR(Register!B107) -> 1900 | B101: =TEXT(Register!B107,"mmmm - yy") -> January - 00 | C101: =Register!I107+Register!J107 -> 0 | D101: =IF(Register!B107="","",Register!B107) ->  | E101: =IF(Register!F107="","(blank line)",Register!F107) -> (blank line) | F101: =Register!C107 -> 00:00:00 | G101: =IF(Register!D107="",IF(Register!E107="","(empty description)",Register!E107),CONCATENATE(Register!D107," - ",Register!E107)) -> (empty description) | H101: Y | I101: =Register!H107 ->  | K101: =TEXT(Register!H107,"mmm-yyyy") ->  | L101: =YEAR(Register!H107) ->  | M101: =Register!I107 -> 0 | N101: =Register!J107 -> 0 | O101: Credit | P101: 0
A102: =YEAR(Register!B108) -> 1900 | B102: =TEXT(Register!B108,"mmmm - yy") -> January - 00 | C102: =Register!I108+Register!J108 -> 0 | D102: =IF(Register!B108="","",Register!B108) ->  | E102: =IF(Register!F108="","(blank line)",Register!F108) -> (blank line) | F102: =Register!C108 -> 00:00:00 | G102: =IF(Register!D108="",IF(Register!E108="","(empty description)",Register!E108),CONCATENATE(Register!D108," - ",Register!E108)) -> (empty description) | H102: Y | I102: =Register!H108 ->  | K102: =TEXT(Register!H108,"mmm-yyyy") ->  | L102: =YEAR(Register!H108) ->  | M102: =Register!I108 -> 0 | N102: =Register!J108 -> 0 | O102: Credit | P102: 0
A103: =YEAR(Register!B109) -> 1900 | B103: =TEXT(Register!B109,"mmmm - yy") -> January - 00 | C103: =Register!I109+Register!J109 -> 0 | D103: =IF(Register!B109="","",Register!B109) ->  | E103: =IF(Register!F109="","(blank line)",Register!F109) -> (blank line) | F103: =Register!C109 -> 00:00:00 | G103: =IF(Register!D109="",IF(Register!E109="","(empty description)",Register!E109),CONCATENATE(Register!D109," - ",Register!E109)) -> (empty description) | H103: Y | I103: =Register!H109 ->  | K103: =TEXT(Register!H109,"mmm-yyyy") ->  | L103: =YEAR(Register!H109) ->  | M103: =Register!I109 -> 0 | N103: =Register!J109 -> 0 | O103: Credit | P103: 0
A104: =YEAR(Register!B110) -> 1900 | B104: =TEXT(Register!B110,"mmmm - yy") -> January - 00 | C104: =Register!I110+Register!J110 -> 0 | D104: =IF(Register!B110="","",Register!B110) ->  | E104: =IF(Register!F110="","(blank line)",Register!F110) -> (blank line) | F104: =Register!C110 -> 00:00:00 | G104: =IF(Register!D110="",IF(Register!E110="","(empty description)",Register!E110),CONCATENATE(Register!D110," - ",Register!E110)) -> (empty description) | H104: Y | I104: =Register!H110 ->  | K104: =TEXT(Register!H110,"mmm-yyyy") ->  | L104: =YEAR(Register!H110) ->  | M104: =Register!I110 -> 0 | N104: =Register!J110 -> 0 | O104: Credit | P104: 0
A105: =YEAR(Register!B111) -> 1900 | B105: =TEXT(Register!B111,"mmmm - yy") -> January - 00 | C105: =Register!I111+Register!J111 -> 0 | D105: =IF(Register!B111="","",Register!B111) ->  | E105: =IF(Register!F111="","(blank line)",Register!F111) -> (blank line) | F105: =Register!C111 -> 00:00:00 | G105: =IF(Register!D111="",IF(Register!E111="","(empty description)",Register!E111),CONCATENATE(Register!D111," - ",Register!E111)) -> (empty description) | H105: Y | I105: =Register!H111 ->  | K105: =TEXT(Register!H111,"mmm-yyyy") ->  | L105: =YEAR(Register!H111) ->  | M105: =Register!I111 -> 0 | N105: =Register!J111 -> 0 | O105: Credit | P105: 0
A106: =YEAR(Register!B112) -> 1900 | B106: =TEXT(Register!B112,"mmmm - yy") -> January - 00 | C106: =Register!I112+Register!J112 -> 0 | D106: =IF(Register!B112="","",Register!B112) ->  | E106: =IF(Register!F112="","(blank line)",Register!F112) -> (blank line) | F106: =Register!C112 -> 00:00:00 | G106: =IF(Register!D112="",IF(Register!E112="","(empty description)",Register!E112),CONCATENATE(Register!D112," - ",Register!E112)) -> (empty description) | H106: Y | I106: =Register!H112 ->  | K106: =TEXT(Register!H112,"mmm-yyyy") ->  | L106: =YEAR(Register!H112) ->  | M106: =Register!I112 -> 0 | N106: =Register!J112 -> 0 | O106: Credit | P106: 0
A107: =YEAR(Register!B113) -> 1900 | B107: =TEXT(Register!B113,"mmmm - yy") -> January - 00 | C107: =Register!I113+Register!J113 -> 0 | D107: =IF(Register!B113="","",Register!B113) ->  | E107: =IF(Register!F113="","(blank line)",Register!F113) -> (blank line) | F107: =Register!C113 -> 00:00:00 | G107: =IF(Register!D113="",IF(Register!E113="","(empty description)",Register!E113),CONCATENATE(Register!D113," - ",Register!E113)) -> (empty description) | H107: Y | I107: =Register!H113 ->  | K107: =TEXT(Register!H113,"mmm-yyyy") ->  | L107: =YEAR(Register!H113) ->  | M107: =Register!I113 -> 0 | N107: =Register!J113 -> 0 | O107: Credit | P107: 0
A108: =YEAR(Register!B114) -> 1900 | B108: =TEXT(Register!B114,"mmmm - yy") -> January - 00 | C108: =Register!I114+Register!J114 -> 0 | D108: =IF(Register!B114="","",Register!B114) ->  | E108: =IF(Register!F114="","(blank line)",Register!F114) -> (blank line) | F108: =Register!C114 -> 00:00:00 | G108: =IF(Register!D114="",IF(Register!E114="","(empty description)",Register!E114),CONCATENATE(Register!D114," - ",Register!E114)) -> (empty description) | H108: Y | I108: =Register!H114 ->  | K108: =TEXT(Register!H114,"mmm-yyyy") ->  | L108: =YEAR(Register!H114) ->  | M108: =Register!I114 -> 0 | N108: =Register!J114 -> 0 | O108: Credit | P108: 0
A109: =YEAR(Register!B115) -> 1900 | B109: =TEXT(Register!B115,"mmmm - yy") -> January - 00 | C109: =Register!I115+Register!J115 -> 0 | D109: =IF(Register!B115="","",Register!B115) ->  | E109: =IF(Register!F115="","(blank line)",Register!F115) -> (blank line) | F109: =Register!C115 -> 00:00:00 | G109: =IF(Register!D115="",IF(Register!E115="","(empty description)",Register!E115),CONCATENATE(Register!D115," - ",Register!E115)) -> (empty description) | H109: Y | I109: =Register!H115 ->  | K109: =TEXT(Register!H115,"mmm-yyyy") ->  | L109: =YEAR(Register!H115) ->  | M109: =Register!I115 -> 0 | N109: =Register!J115 -> 0 | O109: Credit | P109: 0
A110: =YEAR(Register!B116) -> 1900 | B110: =TEXT(Register!B116,"mmmm - yy") -> January - 00 | C110: =Register!I116+Register!J116 -> 0 | D110: =IF(Register!B116="","",Register!B116) ->  | E110: =IF(Register!F116="","(blank line)",Register!F116) -> (blank line) | F110: =Register!C116 -> 00:00:00 | G110: =IF(Register!D116="",IF(Register!E116="","(empty description)",Register!E116),CONCATENATE(Register!D116," - ",Register!E116)) -> (empty description) | H110: Y | I110: =Register!H116 ->  | K110: =TEXT(Register!H116,"mmm-yyyy") ->  | L110: =YEAR(Register!H116) ->  | M110: =Register!I116 -> 0 | N110: =Register!J116 -> 0 | O110: Credit | P110: 0
A111: =YEAR(Register!B117) -> 1900 | B111: =TEXT(Register!B117,"mmmm - yy") -> January - 00 | C111: =Register!I117+Register!J117 -> 0 | D111: =IF(Register!B117="","",Register!B117) ->  | E111: =IF(Register!F117="","(blank line)",Register!F117) -> (blank line) | F111: =Register!C117 -> 00:00:00 | G111: =IF(Register!D117="",IF(Register!E117="","(empty description)",Register!E117),CONCATENATE(Register!D117," - ",Register!E117)) -> (empty description) | H111: Y | I111: =Register!H117 ->  | K111: =TEXT(Register!H117,"mmm-yyyy") ->  | L111: =YEAR(Register!H117) ->  | M111: =Register!I117 -> 0 | N111: =Register!J117 -> 0 | O111: Credit | P111: 0
A112: =YEAR(Register!B118) -> 1900 | B112: =TEXT(Register!B118,"mmmm - yy") -> January - 00 | C112: =Register!I118+Register!J118 -> 0 | D112: =IF(Register!B118="","",Register!B118) ->  | E112: =IF(Register!F118="","(blank line)",Register!F118) -> (blank line) | F112: =Register!C118 -> 00:00:00 | G112: =IF(Register!D118="",IF(Register!E118="","(empty description)",Register!E118),CONCATENATE(Register!D118," - ",Register!E118)) -> (empty description) | H112: Y | I112: =Register!H118 ->  | K112: =TEXT(Register!H118,"mmm-yyyy") ->  | L112: =YEAR(Register!H118) ->  | M112: =Register!I118 -> 0 | N112: =Register!J118 -> 0 | O112: Credit | P112: 0
A113: =YEAR(Register!B119) -> 1900 | B113: =TEXT(Register!B119,"mmmm - yy") -> January - 00 | C113: =Register!I119+Register!J119 -> 0 | D113: =IF(Register!B119="","",Register!B119) ->  | E113: =IF(Register!F119="","(blank line)",Register!F119) -> (blank line) | F113: =Register!C119 -> 00:00:00 | G113: =IF(Register!D119="",IF(Register!E119="","(empty description)",Register!E119),CONCATENATE(Register!D119," - ",Register!E119)) -> (empty description) | H113: Y | I113: =Register!H119 ->  | K113: =TEXT(Register!H119,"mmm-yyyy") ->  | L113: =YEAR(Register!H119) ->  | M113: =Register!I119 -> 0 | N113: =Register!J119 -> 0 | O113: Credit | P113: 0
A114: =YEAR(Register!B120) -> 1900 | B114: =TEXT(Register!B120,"mmmm - yy") -> January - 00 | C114: =Register!I120+Register!J120 -> 0 | D114: =IF(Register!B120="","",Register!B120) ->  | E114: =IF(Register!F120="","(blank line)",Register!F120) -> (blank line) | F114: =Register!C120 -> 00:00:00 | G114: =IF(Register!D120="",IF(Register!E120="","(empty description)",Register!E120),CONCATENATE(Register!D120," - ",Register!E120)) -> (empty description) | H114: Y | I114: =Register!H120 ->  | K114: =TEXT(Register!H120,"mmm-yyyy") ->  | L114: =YEAR(Register!H120) ->  | M114: =Register!I120 -> 0 | N114: =Register!J120 -> 0 | O114: Credit | P114: 0
A115: =YEAR(Register!B121) -> 1900 | B115: =TEXT(Register!B121,"mmmm - yy") -> January - 00 | C115: =Register!I121+Register!J121 -> 0 | D115: =IF(Register!B121="","",Register!B121) ->  | E115: =IF(Register!F121="","(blank line)",Register!F121) -> (blank line) | F115: =Register!C121 -> 00:00:00 | G115: =IF(Register!D121="",IF(Register!E121="","(empty description)",Register!E121),CONCATENATE(Register!D121," - ",Register!E121)) -> (empty description) | H115: Y | I115: =Register!H121 ->  | K115: =TEXT(Register!H121,"mmm-yyyy") ->  | L115: =YEAR(Register!H121) ->  | M115: =Register!I121 -> 0 | N115: =Register!J121 -> 0 | O115: Credit | P115: 0
A116: =YEAR(Register!B122) -> 1900 | B116: =TEXT(Register!B122,"mmmm - yy") -> January - 00 | C116: =Register!I122+Register!J122 -> 0 | D116: =IF(Register!B122="","",Register!B122) ->  | E116: =IF(Register!F122="","(blank line)",Register!F122) -> (blank line) | F116: =Register!C122 -> 00:00:00 | G116: =IF(Register!D122="",IF(Register!E122="","(empty description)",Register!E122),CONCATENATE(Register!D122," - ",Register!E122)) -> (empty description) | H116: Y | I116: =Register!H122 ->  | K116: =TEXT(Register!H122,"mmm-yyyy") ->  | L116: =YEAR(Register!H122) ->  | M116: =Register!I122 -> 0 | N116: =Register!J122 -> 0 | O116: Credit | P116: 0
A117: =YEAR(Register!B123) -> 1900 | B117: =TEXT(Register!B123,"mmmm - yy") -> January - 00 | C117: =Register!I123+Register!J123 -> 0 | D117: =IF(Register!B123="","",Register!B123) ->  | E117: =IF(Register!F123="","(blank line)",Register!F123) -> (blank line) | F117: =Register!C123 -> 00:00:00 | G117: =IF(Register!D123="",IF(Register!E123="","(empty description)",Register!E123),CONCATENATE(Register!D123," - ",Register!E123)) -> (empty description) | H117: Y | I117: =Register!H123 ->  | K117: =TEXT(Register!H123,"mmm-yyyy") ->  | L117: =YEAR(Register!H123) ->  | M117: =Register!I123 -> 0 | N117: =Register!J123 -> 0 | O117: Credit | P117: 0
A118: =YEAR(Register!B124) -> 1900 | B118: =TEXT(Register!B124,"mmmm - yy") -> January - 00 | C118: =Register!I124+Register!J124 -> 0 | D118: =IF(Register!B124="","",Register!B124) ->  | E118: =IF(Register!F124="","(blank line)",Register!F124) -> (blank line) | F118: =Register!C124 -> 00:00:00 | G118: =IF(Register!D124="",IF(Register!E124="","(empty description)",Register!E124),CONCATENATE(Register!D124," - ",Register!E124)) -> (empty description) | H118: Y | I118: =Register!H124 ->  | K118: =TEXT(Register!H124,"mmm-yyyy") ->  | L118: =YEAR(Register!H124) ->  | M118: =Register!I124 -> 0 | N118: =Register!J124 -> 0 | O118: Credit | P118: 0
A119: =YEAR(Register!B125) -> 1900 | B119: =TEXT(Register!B125,"mmmm - yy") -> January - 00 | C119: =Register!I125+Register!J125 -> 0 | D119: =IF(Register!B125="","",Register!B125) ->  | E119: =IF(Register!F125="","(blank line)",Register!F125) -> (blank line) | F119: =Register!C125 -> 00:00:00 | G119: =IF(Register!D125="",IF(Register!E125="","(empty description)",Register!E125),CONCATENATE(Register!D125," - ",Register!E125)) -> (empty description) | H119: Y | I119: =Register!H125 ->  | K119: =TEXT(Register!H125,"mmm-yyyy") ->  | L119: =YEAR(Register!H125) ->  | M119: =Register!I125 -> 0 | N119: =Register!J125 -> 0 | O119: Credit | P119: 0
A120: =YEAR(Register!B126) -> 1900 | B120: =TEXT(Register!B126,"mmmm - yy") -> January - 00 | C120: =Register!I126+Register!J126 -> 0 | D120: =IF(Register!B126="","",Register!B126) ->  | E120: =IF(Register!F126="","(blank line)",Register!F126) -> (blank line) | F120: =Register!C126 -> 00:00:00 | G120: =IF(Register!D126="",IF(Register!E126="","(empty description)",Register!E126),CONCATENATE(Register!D126," - ",Register!E126)) -> (empty description) | H120: Y | I120: =Register!H126 ->  | K120: =TEXT(Register!H126,"mmm-yyyy") ->  | L120: =YEAR(Register!H126) ->  | M120: =Register!I126 -> 0 | N120: =Register!J126 -> 0 | O120: Credit | P120: 0
A121: =YEAR(Register!B127) -> 1900 | B121: =TEXT(Register!B127,"mmmm - yy") -> January - 00 | C121: =Register!I127+Register!J127 -> 0 | D121: =IF(Register!B127="","",Register!B127) ->  | E121: =IF(Register!F127="","(blank line)",Register!F127) -> (blank line) | F121: =Register!C127 -> 00:00:00 | G121: =IF(Register!D127="",IF(Register!E127="","(empty description)",Register!E127),CONCATENATE(Register!D127," - ",Register!E127)) -> (empty description) | H121: Y | I121: =Register!H127 ->  | K121: =TEXT(Register!H127,"mmm-yyyy") ->  | L121: =YEAR(Register!H127) ->  | M121: =Register!I127 -> 0 | N121: =Register!J127 -> 0 | O121: Credit | P121: 0
A122: =YEAR(Register!B128) -> 1900 | B122: =TEXT(Register!B128,"mmmm - yy") -> January - 00 | C122: =Register!I128+Register!J128 -> 0 | D122: =IF(Register!B128="","",Register!B128) ->  | E122: =IF(Register!F128="","(blank line)",Register!F128) -> (blank line) | F122: =Register!C128 -> 00:00:00 | G122: =IF(Register!D128="",IF(Register!E128="","(empty description)",Register!E128),CONCATENATE(Register!D128," - ",Register!E128)) -> (empty description) | H122: Y | I122: =Register!H128 ->  | K122: =TEXT(Register!H128,"mmm-yyyy") ->  | L122: =YEAR(Register!H128) ->  | M122: =Register!I128 -> 0 | N122: =Register!J128 -> 0 | O122: Credit | P122: 0
A123: =YEAR(Register!B129) -> 1900 | B123: =TEXT(Register!B129,"mmmm - yy") -> January - 00 | C123: =Register!I129+Register!J129 -> 0 | D123: =IF(Register!B129="","",Register!B129) ->  | E123: =IF(Register!F129="","(blank line)",Register!F129) -> (blank line) | F123: =Register!C129 -> 00:00:00 | G123: =IF(Register!D129="",IF(Register!E129="","(empty description)",Register!E129),CONCATENATE(Register!D129," - ",Register!E129)) -> (empty description) | H123: Y | I123: =Register!H129 ->  | K123: =TEXT(Register!H129,"mmm-yyyy") ->  | L123: =YEAR(Register!H129) ->  | M123: =Register!I129 -> 0 | N123: =Register!J129 -> 0 | O123: Credit | P123: 0
A124: =YEAR(Register!B130) -> 1900 | B124: =TEXT(Register!B130,"mmmm - yy") -> January - 00 | C124: =Register!I130+Register!J130 -> 0 | D124: =IF(Register!B130="","",Register!B130) ->  | E124: =IF(Register!F130="","(blank line)",Register!F130) -> (blank line) | F124: =Register!C130 -> 00:00:00 | G124: =IF(Register!D130="",IF(Register!E130="","(empty description)",Register!E130),CONCATENATE(Register!D130," - ",Register!E130)) -> (empty description) | H124: Y | I124: =Register!H130 ->  | K124: =TEXT(Register!H130,"mmm-yyyy") ->  | L124: =YEAR(Register!H130) ->  | M124: =Register!I130 -> 0 | N124: =Register!J130 -> 0 | O124: Credit | P124: 0
A125: =YEAR(Register!B131) -> 1900 | B125: =TEXT(Register!B131,"mmmm - yy") -> January - 00 | C125: =Register!I131+Register!J131 -> 0 | D125: =IF(Register!B131="","",Register!B131) ->  | E125: =IF(Register!F131="","(blank line)",Register!F131) -> (blank line) | F125: =Register!C131 -> 00:00:00 | G125: =IF(Register!D131="",IF(Register!E131="","(empty description)",Register!E131),CONCATENATE(Register!D131," - ",Register!E131)) -> (empty description) | H125: Y | I125: =Register!H131 ->  | K125: =TEXT(Register!H131,"mmm-yyyy") ->  | L125: =YEAR(Register!H131) ->  | M125: =Register!I131 -> 0 | N125: =Register!J131 -> 0 | O125: Credit | P125: 0
A126: =YEAR(Register!B132) -> 1900 | B126: =TEXT(Register!B132,"mmmm - yy") -> January - 00 | C126: =Register!I132+Register!J132 -> 0 | D126: =IF(Register!B132="","",Register!B132) ->  | E126: =IF(Register!F132="","(blank line)",Register!F132) -> (blank line) | F126: =Register!C132 -> 00:00:00 | G126: =IF(Register!D132="",IF(Register!E132="","(empty description)",Register!E132),CONCATENATE(Register!D132," - ",Register!E132)) -> (empty description) | H126: Y | I126: =Register!H132 ->  | K126: =TEXT(Register!H132,"mmm-yyyy") ->  | L126: =YEAR(Register!H132) ->  | M126: =Register!I132 -> 0 | N126: =Register!J132 -> 0 | O126: Credit | P126: 0
A127: =YEAR(Register!B133) -> 1900 | B127: =TEXT(Register!B133,"mmmm - yy") -> January - 00 | C127: =Register!I133+Register!J133 -> 0 | D127: =IF(Register!B133="","",Register!B133) ->  | E127: =IF(Register!F133="","(blank line)",Register!F133) -> (blank line) | F127: =Register!C133 -> 00:00:00 | G127: =IF(Register!D133="",IF(Register!E133="","(empty description)",Register!E133),CONCATENATE(Register!D133," - ",Register!E133)) -> (empty description) | H127: Y | I127: =Register!H133 ->  | K127: =TEXT(Register!H133,"mmm-yyyy") ->  | L127: =YEAR(Register!H133) ->  | M127: =Register!I133 -> 0 | N127: =Register!J133 -> 0 | O127: Credit | P127: 0
A128: =YEAR(Register!B134) -> 1900 | B128: =TEXT(Register!B134,"mmmm - yy") -> January - 00 | C128: =Register!I134+Register!J134 -> 0 | D128: =IF(Register!B134="","",Register!B134) ->  | E128: =IF(Register!F134="","(blank line)",Register!F134) -> (blank line) | F128: =Register!C134 -> 00:00:00 | G128: =IF(Register!D134="",IF(Register!E134="","(empty description)",Register!E134),CONCATENATE(Register!D134," - ",Register!E134)) -> (empty description) | H128: Y | I128: =Register!H134 ->  | K128: =TEXT(Register!H134,"mmm-yyyy") ->  | L128: =YEAR(Register!H134) ->  | M128: =Register!I134 -> 0 | N128: =Register!J134 -> 0 | O128: Credit | P128: 0
A129: =YEAR(Register!B135) -> 1900 | B129: =TEXT(Register!B135,"mmmm - yy") -> January - 00 | C129: =Register!I135+Register!J135 -> 0 | D129: =IF(Register!B135="","",Register!B135) ->  | E129: =IF(Register!F135="","(blank line)",Register!F135) -> (blank line) | F129: =Register!C135 -> 00:00:00 | G129: =IF(Register!D135="",IF(Register!E135="","(empty description)",Register!E135),CONCATENATE(Register!D135," - ",Register!E135)) -> (empty description) | H129: Y | I129: =Register!H135 ->  | K129: =TEXT(Register!H135,"mmm-yyyy") ->  | L129: =YEAR(Register!H135) ->  | M129: =Register!I135 -> 0 | N129: =Register!J135 -> 0 | O129: Credit | P129: 0
A130: =YEAR(Register!B136) -> 1900 | B130: =TEXT(Register!B136,"mmmm - yy") -> January - 00 | C130: =Register!I136+Register!J136 -> 0 | D130: =IF(Register!B136="","",Register!B136) ->  | E130: =IF(Register!F136="","(blank line)",Register!F136) -> (blank line) | F130: =Register!C136 -> 00:00:00 | G130: =IF(Register!D136="",IF(Register!E136="","(empty description)",Register!E136),CONCATENATE(Register!D136," - ",Register!E136)) -> (empty description) | H130: Y | I130: =Register!H136 ->  | K130: =TEXT(Register!H136,"mmm-yyyy") ->  | L130: =YEAR(Register!H136) ->  | M130: =Register!I136 -> 0 | N130: =Register!J136 -> 0 | O130: Credit | P130: 0
A131: =YEAR(Register!B137) -> 1900 | B131: =TEXT(Register!B137,"mmmm - yy") -> January - 00 | C131: =Register!I137+Register!J137 -> 0 | D131: =IF(Register!B137="","",Register!B137) ->  | E131: =IF(Register!F137="","(blank line)",Register!F137) -> (blank line) | F131: =Register!C137 -> 00:00:00 | G131: =IF(Register!D137="",IF(Register!E137="","(empty description)",Register!E137),CONCATENATE(Register!D137," - ",Register!E137)) -> (empty description) | H131: Y | I131: =Register!H137 ->  | K131: =TEXT(Register!H137,"mmm-yyyy") ->  | L131: =YEAR(Register!H137) ->  | M131: =Register!I137 -> 0 | N131: =Register!J137 -> 0 | O131: Credit | P131: 0
A132: =YEAR(Register!B138) -> 1900 | B132: =TEXT(Register!B138,"mmmm - yy") -> January - 00 | C132: =Register!I138+Register!J138 -> 0 | D132: =IF(Register!B138="","",Register!B138) ->  | E132: =IF(Register!F138="","(blank line)",Register!F138) -> (blank line) | F132: =Register!C138 -> 00:00:00 | G132: =IF(Register!D138="",IF(Register!E138="","(empty description)",Register!E138),CONCATENATE(Register!D138," - ",Register!E138)) -> (empty description) | H132: Y | I132: =Register!H138 ->  | K132: =TEXT(Register!H138,"mmm-yyyy") ->  | L132: =YEAR(Register!H138) ->  | M132: =Register!I138 -> 0 | N132: =Register!J138 -> 0 | O132: Credit | P132: 0
A133: =YEAR(Register!B139) -> 1900 | B133: =TEXT(Register!B139,"mmmm - yy") -> January - 00 | C133: =Register!I139+Register!J139 -> 0 | D133: =IF(Register!B139="","",Register!B139) ->  | E133: =IF(Register!F139="","(blank line)",Register!F139) -> (blank line) | F133: =Register!C139 -> 00:00:00 | G133: =IF(Register!D139="",IF(Register!E139="","(empty description)",Register!E139),CONCATENATE(Register!D139," - ",Register!E139)) -> (empty description) | H133: =IF(C133=0,"Y","N") -> Y | I133: =Register!H139 ->  | J133: =L133*100+MONTH(I133) ->  | K133: =TEXT(Register!H139,"mmm-yyyy") ->  | L133: =YEAR(Register!H139) ->  | M133: =Register!I139 -> 0 | N133: =Register!J139 -> 0 | O133: =IF(M133<0,"Debit","Credit") -> Credit | P133: =SUMIF(J$4:J$150,"<"&J133,C$4:C$150) -> 0
A134: =YEAR(Register!B140) -> 1900 | B134: =TEXT(Register!B140,"mmmm - yy") -> January - 00 | C134: =Register!I140+Register!J140 -> 0 | D134: =IF(Register!B140="","",Register!B140) ->  | E134: =IF(Register!F140="","(blank line)",Register!F140) -> (blank line) | F134: =Register!C140 -> 00:00:00 | G134: =IF(Register!D140="",IF(Register!E140="","(empty description)",Register!E140),CONCATENATE(Register!D140," - ",Register!E140)) -> (empty description) | H134: Y | I134: =Register!H140 ->  | K134: =TEXT(Register!H140,"mmm-yyyy") ->  | L134: =YEAR(Register!H140) ->  | M134: =Register!I140 -> 0 | N134: =Register!J140 -> 0 | O134: Credit | P134: 0
A135: =YEAR(Register!B141) -> 1900 | B135: =TEXT(Register!B141,"mmmm - yy") -> January - 00 | C135: =Register!I141+Register!J141 -> 0 | D135: =IF(Register!B141="","",Register!B141) ->  | E135: =IF(Register!F141="","(blank line)",Register!F141) -> (blank line) | F135: =Register!C141 -> 00:00:00 | G135: =IF(Register!D141="",IF(Register!E141="","(empty description)",Register!E141),CONCATENATE(Register!D141," - ",Register!E141)) -> (empty description) | H135: Y | I135: =Register!H141 ->  | K135: =TEXT(Register!H141,"mmm-yyyy") ->  | L135: =YEAR(Register!H141) ->  | M135: =Register!I141 -> 0 | N135: =Register!J141 -> 0 | O135: Credit | P135: 0
A136: =YEAR(Register!B142) -> 1900 | B136: =TEXT(Register!B142,"mmmm - yy") -> January - 00 | C136: =Register!I142+Register!J142 -> 0 | D136: =IF(Register!B142="","",Register!B142) ->  | E136: =IF(Register!F142="","(blank line)",Register!F142) -> (blank line) | F136: =Register!C142 -> 00:00:00 | G136: =IF(Register!D142="",IF(Register!E142="","(empty description)",Register!E142),CONCATENATE(Register!D142," - ",Register!E142)) -> (empty description) | H136: Y | I136: =Register!H142 ->  | K136: =TEXT(Register!H142,"mmm-yyyy") ->  | L136: =YEAR(Register!H142) ->  | M136: =Register!I142 -> 0 | N136: =Register!J142 -> 0 | O136: Credit | P136: 0
A137: =YEAR(Register!B143) -> 1900 | B137: =TEXT(Register!B143,"mmmm - yy") -> January - 00 | C137: =Register!I143+Register!J143 -> 0 | D137: =IF(Register!B143="","",Register!B143) ->  | E137: =IF(Register!F143="","(blank line)",Register!F143) -> (blank line) | F137: =Register!C143 -> 00:00:00 | G137: =IF(Register!D143="",IF(Register!E143="","(empty description)",Register!E143),CONCATENATE(Register!D143," - ",Register!E143)) -> (empty description) | H137: Y | I137: =Register!H143 ->  | K137: =TEXT(Register!H143,"mmm-yyyy") ->  | L137: =YEAR(Register!H143) ->  | M137: =Register!I143 -> 0 | N137: =Register!J143 -> 0 | O137: Credit | P137: 0
A138: =YEAR(Register!B144) -> 1900 | B138: =TEXT(Register!B144,"mmmm - yy") -> January - 00 | C138: =Register!I144+Register!J144 -> 0 | D138: =IF(Register!B144="","",Register!B144) ->  | E138: =IF(Register!F144="","(blank line)",Register!F144) -> (blank line) | F138: =Register!C144 -> 00:00:00 | G138: =IF(Register!D144="",IF(Register!E144="","(empty description)",Register!E144),CONCATENATE(Register!D144," - ",Register!E144)) -> (empty description) | H138: Y | I138: =Register!H144 ->  | K138: =TEXT(Register!H144,"mmm-yyyy") ->  | L138: =YEAR(Register!H144) ->  | M138: =Register!I144 -> 0 | N138: =Register!J144 -> 0 | O138: Credit | P138: 0
A139: =YEAR(Register!B145) -> 1900 | B139: =TEXT(Register!B145,"mmmm - yy") -> January - 00 | C139: =Register!I145+Register!J145 -> 0 | D139: =IF(Register!B145="","",Register!B145) ->  | E139: =IF(Register!F145="","(blank line)",Register!F145) -> (blank line) | F139: =Register!C145 -> 00:00:00 | G139: =IF(Register!D145="",IF(Register!E145="","(empty description)",Register!E145),CONCATENATE(Register!D145," - ",Register!E145)) -> (empty description) | H139: Y | I139: =Register!H145 ->  | K139: =TEXT(Register!H145,"mmm-yyyy") ->  | L139: =YEAR(Register!H145) ->  | M139: =Register!I145 -> 0 | N139: =Register!J145 -> 0 | O139: Credit | P139: 0
A140: =YEAR(Register!B146) -> 1900 | B140: =TEXT(Register!B146,"mmmm - yy") -> January - 00 | C140: =Register!I146+Register!J146 -> 0 | D140: =IF(Register!B146="","",Register!B146) ->  | E140: =IF(Register!F146="","(blank line)",Register!F146) -> (blank line) | F140: =Register!C146 -> 00:00:00 | G140: =IF(Register!D146="",IF(Register!E146="","(empty description)",Register!E146),CONCATENATE(Register!D146," - ",Register!E146)) -> (empty description) | H140: Y | I140: =Register!H146 ->  | K140: =TEXT(Register!H146,"mmm-yyyy") ->  | L140: =YEAR(Register!H146) ->  | M140: =Register!I146 -> 0 | N140: =Register!J146 -> 0 | O140: Credit | P140: 0
A141: =YEAR(Register!B147) -> 1900 | B141: =TEXT(Register!B147,"mmmm - yy") -> January - 00 | C141: =Register!I147+Register!J147 -> 0 | D141: =IF(Register!B147="","",Register!B147) ->  | E141: =IF(Register!F147="","(blank line)",Register!F147) -> (blank line) | F141: =Register!C147 -> 00:00:00 | G141: =IF(Register!D147="",IF(Register!E147="","(empty description)",Register!E147),CONCATENATE(Register!D147," - ",Register!E147)) -> (empty description) | H141: Y | I141: =Register!H147 ->  | K141: =TEXT(Register!H147,"mmm-yyyy") ->  | L141: =YEAR(Register!H147) ->  | M141: =Register!I147 -> 0 | N141: =Register!J147 -> 0 | O141: Credit | P141: 0
A142: =YEAR(Register!B148) -> 1900 | B142: =TEXT(Register!B148,"mmmm - yy") -> January - 00 | C142: =Register!I148+Register!J148 -> 0 | D142: =IF(Register!B148="","",Register!B148) ->  | E142: =IF(Register!F148="","(blank line)",Register!F148) -> (blank line) | F142: =Register!C148 -> 00:00:00 | G142: =IF(Register!D148="",IF(Register!E148="","(empty description)",Register!E148),CONCATENATE(Register!D148," - ",Register!E148)) -> (empty description) | H142: Y | I142: =Register!H148 ->  | K142: =TEXT(Register!H148,"mmm-yyyy") ->  | L142: =YEAR(Register!H148) ->  | M142: =Register!I148 -> 0 | N142: =Register!J148 -> 0 | O142: Credit | P142: 0
A143: =YEAR(Register!B149) -> 1900 | B143: =TEXT(Register!B149,"mmmm - yy") -> January - 00 | C143: =Register!I149+Register!J149 -> 0 | D143: =IF(Register!B149="","",Register!B149) ->  | E143: =IF(Register!F149="","(blank line)",Register!F149) -> (blank line) | F143: =Register!C149 -> 00:00:00 | G143: =IF(Register!D149="",IF(Register!E149="","(empty description)",Register!E149),CONCATENATE(Register!D149," - ",Register!E149)) -> (empty description) | H143: Y | I143: =Register!H149 ->  | K143: =TEXT(Register!H149,"mmm-yyyy") ->  | L143: =YEAR(Register!H149) ->  | M143: =Register!I149 -> 0 | N143: =Register!J149 -> 0 | O143: Credit | P143: 0
A144: =YEAR(Register!B150) -> 1900 | B144: =TEXT(Register!B150,"mmmm - yy") -> January - 00 | C144: =Register!I150+Register!J150 -> 0 | D144: =IF(Register!B150="","",Register!B150) ->  | E144: =IF(Register!F150="","(blank line)",Register!F150) -> (blank line) | F144: =Register!C150 -> 00:00:00 | G144: =IF(Register!D150="",IF(Register!E150="","(empty description)",Register!E150),CONCATENATE(Register!D150," - ",Register!E150)) -> (empty description) | H144: Y | I144: =Register!H150 ->  | K144: =TEXT(Register!H150,"mmm-yyyy") ->  | L144: =YEAR(Register!H150) ->  | M144: =Register!I150 -> 0 | N144: =Register!J150 -> 0 | O144: Credit | P144: 0
A145: =YEAR(Register!B151) -> 1900 | B145: =TEXT(Register!B151,"mmmm - yy") -> January - 00 | C145: =Register!I151+Register!J151 -> 0 | D145: =IF(Register!B151="","",Register!B151) ->  | E145: =IF(Register!F151="","(blank line)",Register!F151) -> (blank line) | F145: =Register!C151 -> 00:00:00 | G145: =IF(Register!D151="",IF(Register!E151="","(empty description)",Register!E151),CONCATENATE(Register!D151," - ",Register!E151)) -> (empty description) | H145: Y | I145: =Register!H151 ->  | K145: =TEXT(Register!H151,"mmm-yyyy") ->  | L145: =YEAR(Register!H151) ->  | M145: =Register!I151 -> 0 | N145: =Register!J151 -> 0 | O145: Credit | P145: 0
A146: =YEAR(Register!B152) -> 1900 | B146: =TEXT(Register!B152,"mmmm - yy") -> January - 00 | C146: =Register!I152+Register!J152 -> 0 | D146: =IF(Register!B152="","",Register!B152) ->  | E146: =IF(Register!F152="","(blank line)",Register!F152) -> (blank line) | F146: =Register!C152 -> 00:00:00 | G146: =IF(Register!D152="",IF(Register!E152="","(empty description)",Register!E152),CONCATENATE(Register!D152," - ",Register!E152)) -> (empty description) | H146: Y | I146: =Register!H152 ->  | K146: =TEXT(Register!H152,"mmm-yyyy") ->  | L146: =YEAR(Register!H152) ->  | M146: =Register!I152 -> 0 | N146: =Register!J152 -> 0 | O146: Credit | P146: 0
A147: =YEAR(Register!B153) -> 1900 | B147: =TEXT(Register!B153,"mmmm - yy") -> January - 00 | C147: =Register!I153+Register!J153 -> 0 | D147: =IF(Register!B153="","",Register!B153) ->  | E147: =IF(Register!F153="","(blank line)",Register!F153) -> (blank line) | F147: =Register!C153 -> 00:00:00 | G147: =IF(Register!D153="",IF(Register!E153="","(empty description)",Register!E153),CONCATENATE(Register!D153," - ",Register!E153)) -> (empty description) | H147: Y | I147: =Register!H153 ->  | K147: =TEXT(Register!H153,"mmm-yyyy") ->  | L147: =YEAR(Register!H153) ->  | M147: =Register!I153 -> 0 | N147: =Register!J153 -> 0 | O147: Credit | P147: 0
A148: =YEAR(Register!B154) -> 1900 | B148: =TEXT(Register!B154,"mmmm - yy") -> January - 00 | C148: =Register!I154+Register!J154 -> 0 | D148: =IF(Register!B154="","",Register!B154) ->  | E148: =IF(Register!F154="","(blank line)",Register!F154) -> (blank line) | F148: =Register!C154 -> 00:00:00 | G148: =IF(Register!D154="",IF(Register!E154="","(empty description)",Register!E154),CONCATENATE(Register!D154," - ",Register!E154)) -> (empty description) | H148: Y | I148: =Register!H154 ->  | K148: =TEXT(Register!H154,"mmm-yyyy") ->  | L148: =YEAR(Register!H154) ->  | M148: =Register!I154 -> 0 | N148: =Register!J154 -> 0 | O148: Credit | P148: 0
A149: =YEAR(Register!B155) -> 1900 | B149: =TEXT(Register!B155,"mmmm - yy") -> January - 00 | C149: =Register!I155+Register!J155 -> 0 | D149: =IF(Register!B155="","",Register!B155) ->  | E149: =IF(Register!F155="","(blank line)",Register!F155) -> (blank line) | F149: =Register!C155 -> 00:00:00 | G149: =IF(Register!D155="",IF(Register!E155="","(empty description)",Register!E155),CONCATENATE(Register!D155," - ",Register!E155)) -> (empty description) | H149: Y | I149: =Register!H155 ->  | K149: =TEXT(Register!H155,"mmm-yyyy") ->  | L149: =YEAR(Register!H155) ->  | M149: =Register!I155 -> 0 | N149: =Register!J155 -> 0 | O149: Credit | P149: 0
A150: =YEAR(Register!B156) -> 1900 | B150: =TEXT(Register!B156,"mmmm - yy") -> January - 00 | C150: =Register!I156+Register!J156 -> 0 | D150: =IF(Register!B156="","",Register!B156) ->  | E150: =IF(Register!F156="","(blank line)",Register!F156) -> (blank line) | F150: =Register!C156 -> 00:00:00 | G150: =IF(Register!D156="",IF(Register!E156="","(empty description)",Register!E156),CONCATENATE(Register!D156," - ",Register!E156)) -> (empty description) | H150: Y | I150: =Register!H156 ->  | K150: =TEXT(Register!H156,"mmm-yyyy") ->  | L150: =YEAR(Register!H156) ->  | M150: =Register!I156 -> 0 | N150: =Register!J156 -> 0 | O150: Credit | P150: 0

Sheet Lists (hidden)
A1: Trans_Category | C1: Trans_Type | D1: Days to Clear | F1: Cleared
A2: Bank Fee | C2: ATM Cash | D2: 0 | F2: Y
A3: Clothing | C3: Auto from Checking | D3: 0 | F3: N
A4: Deposit | C4: Auto to Savings | D4: 0
A5: Donations | C5: Bank Fee | D5: 0
A6: Emergency Fund | C6: Check | D6: 5
A7: Entertainment | C7: Debit Card | D7: 0
A8: Groceries | C8: Deposit | D8: 0
A9: Household stuff | C9: Direct Deposit | D9: 0
A10: Housing/Rent
A11: Income
A12: Insurance
A13: Loan Payment
A14: Medical
A15: Other
A16: Personal care
A17: Savings
A18: Savings 3-5 year
A19: Transportation
A20: Travel
A21: Utilities

Sheet Ver_Notes (hidden)
A3: v30 | B3: - "Cleared date" column is present but hidden in Register
A4: (7/24/2016) | B4: - Statement no sorts by date asc in the pivot table
A6: v29 | B6: - added instructions page at beginning
A7: (7/22/2016) | B7: - added instruction to the top of register, statement, budget
B8: - updated the VB scripts for the row changes
A10: v28 | B10: - consolidated AddNew and RemoveFalse to CleanUpOverdrafts
A11: (7/17/2016) | B11: - added "RefreshBudget" when clear transactions
A13: v27 | B13: - added "data validation" to the "Cleared Y or N" column, based on Y,N list
B14: - set "Cleared Y or N" to be editable (not locked)
B15: - added code to refresh "Cleared date" column after AddOverdrafts (sometimes gets messed up)
A17: v26 | B17: - unprotect sheet before disable/enable of row add/remove
A19: v25 | B19: - empty
A21: v24 | B21: - changed OVERDRAFT "cleared date" to be the same as the line causing the OVERDRAFT
B22: - added numeric month (Clear_M) and Upto_M_Bal (Balance up to that month)
B23: - use above new columns to calculate correct beginning balance for the statements (add up everything from a prevous month)
B24: - turned off "Grand Total" in statement
B25: - removed year filter and changed filter name to "Statement month"
B26: - removed "Refresh" button from Statement
B27: - Hid "N" filter on BudgetViewer page
B28: - Removed "Refresh" button from BudgetViewer
B29: - fixed display of blank desription to "(empty description)"
B30: - fixed to category and type dropdowns
B31: - added several categories
B32: - "remove" and "add" disappear when disabled (columns are hidden)

Sheet Statement (Example) (hidden)
B1: My Personal Bank
A3: Statement | B3: 9/1/16 - 9/30/16
A5: Description | C5: Summary Amt.
A6: Beginning balance as of 05/18/2011 | C6: 73.06
A7: Total credits | C7: 1900.77
A8: Total debits | C8: -1301.22
A9: Ending balance as of 06/09/2011 | C9: 672.61
A11: Date | B11: Description | C11: Amount | D11: Running Bal.
A12: 2011-05-18 | B12: Beginning balance as of 05/18/2011 | D12: 73.06
A13: 2011-05-18 | B13: JPMorgan Chase DES:Ext Trnsfr ID:2065436997 INDN: CO ID:9200 | C13: 300 | D13: 373.06
A14: 2011-05-19 | B14: Online Banking transfer to Sav 9648 Confirmation# 4084516884 | C14: -150 | D14: 223.06
A15: 2011-05-23 | B15: Counter Credit | C15: 100 | D15: 323.06
A16: 2011-05-23 | B16: FEDLOANSERVICING DES:STDNT LOAN ID:6ISOS36CR11 INDN:SUE SMITH CO ID:9102 | C16: -121.92 | D16: 201.14
A17: 2011-05-23 | B17: BNP 05/22 #000259807 WITHDRWL 497400MONTPELL MONTPELLIER | C17: -42.81 | D17: 158.33
A18: 2011-05-27 | B18: AUTOMATIC TRANSFER TO 9648 | C18: -25 | D18: 133.33
A19: 2011-05-31 | B19: INTERNATIONAL TE DES:Payroll ID:158785467261860 INDN:O ID:7311 | C19: 1500.77 | D19: 1634.1
A20: 2011-05-31 | B20: BNP 05/30 #000960667 WITHDRWL 497400MONTPELL MONTPELLIER | C20: -599.91 | D20: 1034.19
A21: 2011-05-31 | B21: BNP 05/29 #000548855 WITHDRWL 497400MONTPELL MONTPELLIER | C21: -42.85 | D21: 991.34
A22: 2011-06-02 | B22: JPMorgan Chase DES:Ext Trnsfr ID:2053489976 INDN: CO ID:9200 | C22: -100 | D22: 891.34
A23: 2011-06-06 | B23: BNP 06/05 #000596655 WITHDRWL 497400MONTPELL MONTPELLIER | C23: -218.73 | D23: 672.61

Sheet DeveloperNotes (hidden)
A2: Worksheets
A3: Register – Main worksheet to be used by the student.
A4: Statement – A “pivot” view of data on the BudgetVwr_Source worksheet, providing a simulated bank statement.
A5: BudgetViewer – Also a “pivot” view of data on the BudgetVwr_Source worksheet, providing a display by budget category.
A6: BudgetVwr_Source – to be hidden and not visible to the student. This is a copy of the Register with extra columns to keep track of the date the transaction “cleared”. Which can be different from the transaction date.
A7: Lists – to be hidden and not visible to the student. These are the lists used for the dropdowns in Register and the “Days to Clear”. There is also a “Statement Ranges” list that I had thought of using for the statement, but am using filters on the pivot views instead.
A8: Statement (Example) – to be hidden and not visible to the student. Something I was using to think about how a statement could look.
A9: DeveloperNotes - to be hidden and not visible to the student. Where these notes and others could reside.
A11: VBA subroutine notes
A12: Two “Private” subroutines associated with “Sheet1” (Register). They run automatically and activate on all activity on the page.
A13: - Worksheet_Change - detects when anything changes in columns I and J (debits and credits). It then calls the “ProcessOverdrafts” subroutine.
A14: - Worksheet_SelectionChange – detects when the user clicks on the add or remove cells, and calls the corresponding subrouting (AddRow or RemoveRow)
A15: -
A16: Module1
A17: Sub TurnEventsOn – typically only used during debugging and can be activated from Developer-Macro, to reset the state and have the Excel events “active”.
A19: Sub ProcessOverdrafts
A20: - This is called at the end of any credit or debit cell change, from Worksheet_Change. It checks for a negative balance in the current row and previous row and adds an overdraft row as necessary. It also calls the following subroutines at the end – RemoveFalseOverdrafts, AddNewOverdrafts, UpdateSource, RefreshBudget, and RefreshStatement
A22: Sub RemoveFalseOverdrafts
A23: - This reverifies all the rows and removes unnecessary overdrafts. This needs to be called each debit/credit transaction in case the person corrected a value above or below the current row.
A25: Sub RemoveAllOverdrafts
A26: - When the overdraft amound changes, this removes all overdrafts and is followed by a call to AddNewOverdrafts.
A28: Sub AddNewOverdrafts
A29: - This re-verifies all the rows and adds necessary overdrafts. This needs to be called each debit/credit transaction in case the person corrected a value above or below the current row.
A31: Sub AddRow – add a new row above the current row
A33: Sub RemoveRow – delete the current row
A35: Module 2
A36: Sub UpdateSource
A37: – updates the BudgetVwr_Source worksheet.
A39: Sub RefreshBudget – refresh the pivot view for the Budget
A41: Sub RefreshStatement – refresh the pivot view for the Statement
A43: Hiding a sheet
A44: http://www.techrepublic.com/blog/microsoft-office/hide-excel-sheets-really-hide-them/
A45: - Use VB Editor, select the sheet, change Visible property to “2 – xlSheetVeryHidden”
